Cogmind - Beta 17.1 @@@ ROGUE MODE // 2026.09.11 @ 20:09:41 Player: H3-MLN Result: Establishing 0b11! Performance ------------- Evolutions (9) 4500 Regions Visited (32) 6400 Robots Destroyed (318) 1590 Value Destroyed (11614) 11614 Prototype IDs (390) 7800 Alien Tech Used (0) 0 Bonus (43801) 43801 TOTAL SCORE: 75705 Bonus ------- Pacifist 200 Triggered Max Security 1000 High Alert Combat Kills 1621 Follower Combat Kills 3424 Hunted by Unchained 500 Spooked CY-PHR 1000 Awakened Behemoth Slayer 1000 Network Hubs Disabled 800 Aligned with FarCom 300 Met Data Miner 300 Met Imprinter 300 Met Warlord at Base 500 MAIN.C Attacked Warlord 500 Warlord Defense Kills 400 Built Enhanced Grunts 300 Met R17 at Cetus 500 Met R17 at Research 2000 Met Warlord at Research 2000 Invited to Help at Command 2000 Destroyed MAIN.C Guards 500 Met MAIN.C 5000 Destroyed MAIN.C Shell 5000 Destroyed MAIN.C 10000 Met Warlord at Command 2000 Win 3000 Friendly Fire -344 Cogmind --------- Core Integrity 516/1600 Matter 300/300 Energy 228/240 System Corruption 22% Temperature Cool (52) Movement Hovering (35) Location 0b11 Command Parts ------- > --- POWER (2) -------- Zero-point Reactor > --- PROPULSION (7) --- Cooled Antigrav System Antigrav Array Experimental Gyrokinetic Inverter Combat Linear Gravjet Combat Linear Gravjet (fused) Combat Linear Gravjet > --- UTILITY (13) ----- High-capacity Storage Unit Enhanced Optical Array Advanced Target Analyzer Improved Weapon Shielding Layered Heavy Armor Plating Graphene Brace > --- WEAPON (3) ------- Lance Lance CR-A16's Behemoth Slayer > --- INVENTORY (20) --- Cooled Antigrav System Advanced Cooling System Advanced Energy Well (335) Experimental Matter Compressor (500) Advanced Quantum Shading Machine Advanced Actuator Array Heavy Armor Plating Wardrone Bay (1/1) Phasing Sabre Peak State ------------ > --- POWER ------------ Zero-point Reactor > --- PROPULSION ------- Biometal Heavy Treads Experimental Gyrokinetic Inverter Combat Linear Gravjet Combat Linear Gravjet Combat Linear Gravjet Combat Linear Gravjet > --- UTILITY ---------- High-capacity Storage Unit Advanced Phase Shifter Graphene Brace AEGIS Remote Shield Wardrone Bay > --- WEAPON ----------- Phasing Sabre Lance Lance > --- INVENTORY -------- Antigrav Array Advanced Cooling System Advanced Energy Well Advanced Quantum Shading Machine Advanced Actuator Array Improved Weapon Shielding Advanced EM Shield CR-A16's Behemoth Slayer [Rating: 229] Favorites ----------- Power Light Nuclear Core Engine Light Ion Engine Power Core Light Nuclear Core Reactor Compact Particle Reactor Propulsion Combat Linear Gravjet Treads Light Treads Leg Flexi-carbon Leg Wheel Wheel Hover Unit Combat Linear Gravjet Flight Unit Improved VTOL Module Utility Improved Hacking Suite Device Structural Scanner Storage High-capacity Storage Unit Processor Core Analyzer Hackware Improved Hacking Suite Protection Improved Utility Shielding Weapon Great Maul Impact Weapon Great Maul Slashing Weapon Ripper Piercing Weapon CR-A16's Pointy Stick Build | -11 -10 -10 -9 -9 -9 -8 -8 -7 -7 -7 -7 -6 -6 -6 -6 -6 -5 -5 -5 -5 -5 -4 -4 -4 -4 -4 -4 -3 -3 -2 -1 -1 ------- Run | Yrd Mat Min Mat Min Exi Min Mat Fac Low Low Dat Pro Fac Low Low Zio Pro Fac Upp Upp War Pro Fac Ext Cet Arc Hub Res Qua Res Acc Com Slots Evolved 18 | . . . 2 . . . 2 2 . . . . 2 . . . . 2 . . . . 2 . . . . 2 . 2 2 . Power 1 | . . . . . . . . . . . . . 1 . . . . . . . . . . . . . . . . . . . Propulsion 5 | . . . 1 . . . 1 . . . . . 1 . . . . 1 . . . . 1 . . . . . . . . . Utility 11 | . . . 1 . . . 1 1 . . . . . . . . . 1 . . . . 1 . . . . 2 . 2 2 . Weapon 1 | . . . . . . . . 1 . . . . . . . . . . . . . . . . . . . . . . . . Parts Attached 317 | 4 1 8 2 3 1 18 36 37 19 2 . 2 11 1 . 2 1 13 . 1 29 2 12 10 7 7 5 17 2 15 12 37 Power 52 | 1 . 2 . . . 3 6 5 2 . . . 2 . . . . . . . 5 . 2 1 2 . 1 3 . 6 2 9 Engine 20 | 1 . 2 . . . 1 4 3 1 . . . . . . . . . . . . . 2 1 . . 1 1 . 1 . 2 Core 13 | . . . . . . 2 2 2 1 . . . 2 . . . . . . . 2 . . . 1 . . 1 . . . . Reactor 19 | . . . . . . . . . . . . . . . . . . . . . 3 . . . 1 . . 1 . 5 2 7 Propulsion 102 | 2 . 3 . 1 . 8 19 16 8 1 . 1 4 . . . . 2 . . 10 2 3 1 3 . 3 3 . 3 3 6 Treads 29 | . . . . . . . 16 5 4 1 . 1 . . . . . . . . . . . . 1 . . . . . . 1 Leg 24 | 2 . 1 . . . 7 . 9 4 . . . . . . . . . . . . . . . 1 . . . . . . . Wheel 1 | . . . . . . . 1 . . . . . . . . . . . . . . . . . . . . . . . . . Hover 31 | . . . . . . . . 2 . . . . . . . . . . . . 7 . 3 1 1 . 3 3 . 3 3 5 Flight 17 | . . 2 . 1 . 1 2 . . . . . 4 . . . . 2 . . 3 2 . . . . . . . . . . Utility 136 | 1 1 3 2 1 1 5 8 13 6 1 . 1 4 1 . 1 1 9 . 1 12 . 5 6 2 7 1 10 2 6 7 18 Device 53 | . . 2 . 1 . 5 1 5 2 . . . . 1 . . 1 3 . 1 3 . 3 3 1 2 1 5 . 2 4 7 Storage 14 | 1 1 1 . . . . 2 1 . . . . 1 . . . . . . . 1 . 1 1 . . . 1 . 2 . 1 Processor 16 | . . . . . . . . 3 2 . . . 1 . . . . . . . 3 . 1 . . . . 2 . 1 . 3 Hackware 19 | . . . . . . . . . . . . . 2 . . 1 . 6 . . 3 . . . . 5 . 1 . 1 . . Protection 34 | . . . 2 . 1 . 5 4 2 1 . 1 . . . . . . . . 2 . . 2 1 . . 1 2 . 3 7 Artifact . | . . . . . . . . . . . . . . . . . . . . . . . . . . . . . . . . . Weapon 27 | . . . . 1 . 2 3 3 3 . . . 1 . . 1 . 2 . . 2 . 2 2 . . . 1 . . . 4 Energy Gun . | . . . . . . . . . . . . . . . . . . . . . . . . . . . . . . . . . Energy Cannon . | . . . . . . . . . . . . . . . . . . . . . . . . . . . . . . . . . Ballistic Gun . | . . . . . . . . . . . . . . . . . . . . . . . . . . . . . . . . . Ballistic Cannon . | . . . . . . . . . . . . . . . . . . . . . . . . . . . . . . . . . Launcher . | . . . . . . . . . . . . . . . . . . . . . . . . . . . . . . . . . Special Weapon . | . . . . . . . . . . . . . . . . . . . . . . . . . . . . . . . . . Impact Weapon 10 | . . . . 1 . 1 3 1 1 . . . . . . . . . . . . . 2 . . . . 1 . . . . Slashing Weapon 13 | . . . . . . 1 . 2 2 . . . 1 . . . . 2 . . 2 . . 2 . . . . . . . 1 Piercing Weapon 4 | . . . . . . . . . . . . . . . . 1 . . . . . . . . . . . . . . . 3 Special Melee Weapon . | . . . . . . . . . . . . . . . . . . . . . . . . . . . . . . . . . Unidentified Prototypes 30 | . . . . 1 . . 1 1 . . . . . . . . . . . . 13 . . . 3 1 . 4 . . 1 5 Corrupted Parts 6 | . . . . . . 4 1 . 1 . . . . . . . . . . . . . . . . . . . . . . . System Corruption 36 | . . . . . . 20 11 . 5 . . . . . . . . . . . . . . . . . . . . . . . Parts Lost 106 | . . 4 . . . 11 5 25 9 . . . 1 . . . . 1 . . 1 6 . . . . 4 . 3 3 7 26 Power 20 | . . 1 . . . 1 1 2 . . . . . . . . . . . . 1 1 . . . . 1 . 1 2 1 8 Propulsion 37 | . . 2 . . . 5 3 11 4 . . . . . . . . . . . . 2 . . . . 2 . 1 1 2 4 Utility 38 | . . 1 . . . 4 1 8 3 . . . 1 . . . . . . . . 2 . . . . 1 . 1 . 3 13 Weapon 11 | . . . . . . 1 . 4 2 . . . . . . . . 1 . . . 1 . . . . . . . . 1 1 Highest Loss Streak 11 | . . 4 . . . 6 1 9 5 . . . 1 . . . . 1 . . 1 3 . . . . 4 . 3 2 2 11 To Critical Strikes . | . . . . . . . . . . . . . . . . . . . . . . . . . . . . . . . . . Average Backups 9 | . 2 3 4 4 3 1 9 15 15 16 16 16 11 7 7 7 7 5 5 5 3 2 2 4 8 8 8 7 7 15 15 11 Power . | . 1 . . . . . . . 1 1 1 1 . . . . . . . . . . . . . . . . . 1 1 . Propulsion 3 | . . 2 3 1 1 . 5 8 7 8 7 6 4 2 2 2 2 . 1 1 . . . 1 2 2 2 1 2 2 2 2 Utility 4 | . . 1 1 2 2 1 1 4 5 6 8 8 6 5 5 4 4 4 3 3 2 1 1 3 5 6 6 5 5 9 10 6 Weapon . | . . . . . . . 2 1 . . . . . . . . 1 1 1 1 . . . . . . . . . 1 1 1 Tool/Special . | . . . . . . . . . . . . . . . . . . . . . . . . . . . . . . . . . Unused Backups 37 | . . 1 . . . . 1 10 . . . 2 2 . . 1 . 1 . . 3 . . 1 1 1 . . . 3 2 8 Power 5 | . . . . . . . . 2 . . . 1 . . . . . . . . . . . . . . . . . . . 2 Propulsion 10 | . . . . . . . 1 3 . . . 1 1 . . . . . . . . . . . . . . . . . 2 2 Utility 19 | . . . . . . . . 3 . . . . 1 . . 1 . 1 . . 3 . . 1 1 1 . . . 3 . 4 Weapon 2 | . . 1 . . . . . 1 . . . . . . . . . . . . . . . . . . . . . . . . Tool/Special 1 | . . . . . . . . 1 . . . . . . . . . . . . . . . . . . . . . . . . Average Slot Usage (%) 87 | . 58 44 52 80 88 75 89 96 91 100 100 99 85 86 86 86 86 83 82 81 78 78 81 99 95 93 92 93 93 90 91 87 Engine 4 | . 14 11 11 11 11 4 5 3 3 7 7 7 3 6 6 6 6 5 5 5 . . 3 5 5 5 4 1 . . . . Core 2 | . . . . . . 3 3 3 3 . . . 5 6 6 6 6 5 5 5 1 5 5 5 3 . . . . . . . Reactor 1 | . . . . . . . . . . . . . . . . . . . . . 4 2 . . 1 5 5 6 9 7 7 7 Treads 11 | . . . . . . . 32 22 15 30 30 30 15 . . . . . . . . . . . . . . . . . . . Leg 3 | . 28 11 . . . 19 1 7 14 . . . . . . . . . . . . . . . . . . . . . . . Hover 9 | . . . . . . . . . . . . . . . . . . . . . 8 30 32 36 31 31 30 27 26 29 27 26 Flight 5 | . . 14 22 32 33 8 . . . . . . 10 26 26 26 26 25 23 23 17 3 2 . . . . . . . . . Device 10 | . . 4 11 11 11 18 11 8 5 7 7 7 . 6 6 6 6 7 11 10 5 1 11 10 15 10 10 14 13 16 20 18 Storage 5 | . 15 3 . . . . 8 7 7 7 7 7 6 6 6 6 6 5 5 5 5 5 5 5 5 5 5 4 4 4 4 4 Processor 5 | . . . . . . . . 10 15 15 15 15 13 13 13 10 6 . . . 1 5 7 10 10 5 . 2 4 6 4 5 Hackware 5 | . . . . . . . . . . . . . 7 6 6 8 13 19 17 17 18 11 5 4 . 14 20 17 14 13 12 6 Protection 5 | . . . 8 22 22 3 8 8 4 7 7 6 4 . . . . . . . 1 4 . 4 5 . . 1 4 4 11 8 Impact Weapon 6 | . . . . 4 11 12 15 11 9 7 7 7 3 . . . . . . . . . 2 6 . . . 1 4 4 . . Slashing Weapon 6 | . . . . . . 4 2 8 9 15 15 15 12 13 13 13 13 10 11 11 9 2 . 3 10 10 10 7 4 . 3 5 Piercing Weapon 1 | . . . . . . . . . . . . . . . . . . . . . . 1 4 5 5 5 5 4 4 . . 3 Peak Build Rating 229 | 4 5 5 6 12 11 27 33 70 70 49 49 51 67 67 65 65 65 85 85 85 137 121 113 120 131 139 123 145 150 157 183 229 Average Rating 73 | 3 4 3 4 8 10 15 29 45 48 46 49 49 51 65 65 64 65 74 85 84 113 103 100 112 127 122 120 139 145 151 177 182 On Entrance 71 | . 4 4 4 6 10 11 27 32 70 46 49 49 50 67 65 65 65 65 85 85 85 121 72 113 118 131 121 114 145 135 157 173 Avg Prop Armor Cover (%) 8 | . . 6 . . . 8 6 8 . . . . . . . . . 4 . 5 4 14 18 5 4 14 6 6 4 3 . 2 Naked Turns 51 | . . 51 . . . . . . . . . . . . . . . . . . . . . . . . . . . . . . Heaviest Build 138 | 10 15 16 10 12 12 20 51 84 68 64 64 72 70 26 26 26 26 28 27 29 54 40 30 51 60 57 47 61 70 116 131 138 Greatest Support 135 | 20 20 20 10 15 15 38 82 82 83 83 83 83 83 30 30 30 30 42 40 40 82 82 45 59 88 88 78 96 86 117 130 135 Greatest Overweight (x) 15 | . . . . . . 1 2 3 1 . . . 1 . . . . . . 1 1 . . . . 15 . 1 . . 1 1 Average Overweight (x) . | . . . . . . . . . . . . . . . . . . . . . . . . . . 6 . . . . . . Largest Inventory Capacity 25 | 8 10 15 5 5 5 5 15 20 20 20 20 20 20 10 10 10 10 10 10 10 10 10 10 15 15 15 15 15 15 25 25 25 Average Capacity 14 | 7 9 6 5 5 5 5 13 19 20 20 20 20 15 10 10 10 10 10 10 10 10 10 10 12 15 15 15 15 15 23 25 21 Most Carried 25 | 1 3 6 5 5 5 5 15 20 20 20 20 20 20 10 10 10 10 10 10 10 10 10 10 15 15 15 15 15 15 25 25 25 Average Carried 14 | . 2 4 4 4 4 4 12 18 19 20 20 19 15 10 10 10 10 9 10 10 8 9 9 11 14 14 15 14 14 23 24 19 Final Capacity 25 | 8 10 5 5 5 5 5 15 20 20 20 20 20 10 10 10 10 10 10 10 10 10 10 10 15 15 15 15 15 15 25 25 20 Final Carried 25 | 1 3 4 5 4 5 5 15 20 20 20 20 20 10 10 10 10 10 10 10 10 9 10 10 15 15 15 15 15 14 25 25 17 Scrap Suit Usage (%) 1 | . . . . . . 14 . . . . . . . . . . . . . . . . . . . . . . . . . . Parts Cannibalized 1 | . . . . . . 1 . . . . . . . . . . . . . . . . . . . . . . . . . . Class Distribution -------------------- 35% | Scavenger-Mutant 20% | Mutant 11% | Scavenger-Gladiator 8% | Scavenger-Assassin 7% | Hacker-Sprinter 4% | Scavenger-Sprinter 3% | Commander-Scout Dominant Class ---------------- Mutant | -10/Materials Mutant | -10/Mines Mutant | -9/Materials Scavenger-Mutant | -9/Mines Scavenger-Mutant | -9/Exiles Scavenger-Assassin | -8/Mines Mutant | -8/Materials Scavenger-Mutant | -7/Factory Scavenger-Mutant | -7/Lower Caves Scavenger-Mutant | -7/Lower Caves Scavenger-Mutant | -7/Data Miner Scavenger-Mutant | -6/Proximity Caves Scavenger-Mutant | -6/Factory Scavenger-Sprinter | -6/Lower Caves Scavenger-Sprinter | -6/Lower Caves Scavenger-Sprinter | -6/Zion Scavenger-Sprinter | -5/Proximity Caves Hacker-Sprinter | -5/Factory Hacker-Sprinter | -5/Upper Caves Hacker-Sprinter | -5/Upper Caves Hacker-Sprinter | -5/Warlord Scavenger-Gladiator | -4/Proximity Caves Scavenger-Mutant | -4/Factory Commander-Scout | -4/Extension Commander-Scout | -4/Cetus Scavenger-Assassin | -4/Archives Scavenger-Mutant | -4/Hub_04(d) Scavenger-Mutant | -3/Research Scavenger-Mutant | -3/Quarantine Scavenger-Ninja | -2/Research Scavenger-Mutant | -1/Access Scavenger-Gladiator | -1/Command Resources | -11 -10 -10 -9 -9 -9 -8 -8 -7 -7 -7 -7 -6 -6 -6 -6 -6 -5 -5 -5 -5 -5 -4 -4 -4 -4 -4 -4 -3 -3 -2 -1 -1 ----------- Run | Yrd Mat Min Mat Min Exi Min Mat Fac Low Low Dat Pro Fac Low Low Zio Pro Fac Upp Upp War Pro Fac Ext Cet Arc Hub Res Qua Res Acc Com Matter Collected 5786 | 206 . 98 . 60 . 271 618 637 308 72 . 161 100 30 . 30 10 251 6 53 435 35 135 100 160 90 25 296 10 225 185 1179 Remotely . | . . . . . . . . . . . . . . . . . . . . . . . . . . . . . . . . . Salvage Created 17082 | . . . . . . 739 3441 3188 692 108 . 333 410 . . . . 370 . 224 187 88 690 939 . 283 339 922 . 541 573 3015 Parts 650 | . . . . . . 22 105 131 16 . . 11 17 . . . . 10 . 8 12 6 24 33 . 21 29 39 . 11 32 123 Haulers Intercepted 17 | . . . . . . . 6 . . . . . . . . . . 2 . . . . . 2 . . . 4 . 2 1 . Recyclers Shooed 8 | . . . . . . 1 2 1 . . . . 1 . . . . . . . . . 1 . . . . 1 . . 1 . Parts Field Recycled . | . . . . . . . . . . . . . . . . . . . . . . . . . . . . . . . . . Retrieved Matter . | . . . . . . . . . . . . . . . . . . . . . . . . . . . . . . . . . Parts Self-Destructed 37 | . . . . . . . . . 13 . . 11 . . . . . . . 9 . 4 . . . . . . . . . . Prevented 1 | . . . . . . . . . 1 . . . . . . . . . . . . . . . . . . . . . . . Parts Restored . | . . . . . . . . . . . . . . . . . . . . . . . . . . . . . . . . . Kills | -11 -10 -10 -9 -9 -9 -8 -8 -7 -7 -7 -7 -6 -6 -6 -6 -6 -5 -5 -5 -5 -5 -4 -4 -4 -4 -4 -4 -3 -3 -2 -1 -1 ------- Run | Yrd Mat Min Mat Min Exi Min Mat Fac Low Low Dat Pro Fac Low Low Zio Pro Fac Upp Upp War Pro Fac Ext Cet Arc Hub Res Qua Res Acc Com Combat Hostiles Destroyed 193 | . . . . . . 16 55 54 8 . . 7 4 . . . . . . . 2 4 . 4 . . 1 1 . 4 5 28 Melee 132 | . . . . . . 9 29 36 7 . . 5 4 . . . . . . . 2 4 . 4 . . . 1 . 1 4 26 AOE 2 | . . . . . . . . 1 . . . . . . . . . . . . . . . . . . 1 . . . . . Classes Destroyed 22 | . . . . . . 7 7 4 1 . . 1 . . . . . . . . 1 . . . . . . . . 1 . . Worker 33 | . . . . . . 2 11 4 . . . . . . . . . . . . . . 2 2 . . 7 2 . 2 1 . Builder 15 | . . . . . . . 4 . . . . . . . . . . . . . . . 3 1 . . 2 3 . 1 1 . Tunneler 2 | . . . . . . 1 . . . . . . . . . . . . . . . . . 1 . . . . . . . . Hauler 17 | . . . . . . . 6 . . . . . . . . . . 2 . . . . . 2 . . . 4 . 2 1 . Recycler 29 | . . . . . . 1 7 2 . . . . 2 . . . . 1 . . . . 5 2 . . . 3 . . . 6 Mechanic 4 | . . . . . . . 1 1 . . . . . . . . . . . . . . . . . . . . . 2 . . Operator 13 | . . . . . . . . 1 . . . . . . . . . 1 . . . . . 1 . 8 . . . 1 . 1 Drone 1 | . . . . . . . . . . . . . . . . . . . . . . . . . . . . . . 1 . . Watcher 11 | . . . . . . . 5 2 . . . . . . . . . 1 . . . . . . . . 3 . . . . . Swarmer 37 | . . . . . . 4 10 . 1 . . 1 4 . . . . . . . . 4 . . . . . . . 1 . 12 Grunt 60 | . . . . . . 10 24 19 1 . . 3 . . . . . . . . . . . 1 . . . . . 1 . 1 Brawler 5 | . . . . . . 1 2 1 . . . 1 . . . . . . . . . . . . . . . . . . . . Duelist 8 | . . . . . . 1 4 3 . . . . . . . . . . . . . . . . . . . . . . . . Protector 3 | . . . . . . . . 2 . . . . . . . . . . . . . . . . . . 1 . . . . . Sentry 17 | . . . . . . . 12 1 . . . . . . . . . . . . . . . 3 . . . . . . . 1 Specialist 18 | . . . . . . . 2 16 . . . . . . . . . . . . . . . . . . . . . . . . Hunter 12 | . . . . . . . 1 3 . . . . . . . . . . . . 1 . . . . . . . . 1 2 4 Programmer 18 | . . . . . . . . 8 . . . 1 . . . . . . . . 1 . . . . . . . . . 2 6 Heavy 1 | . . . . . . . . 1 . . . . . . . . . . . . . . . . . . . . . . . . Behemoth 5 | . . . . . . . . . . . . 1 . . . . . . . . . . . . . . . 1 . . 1 2 Combat Programmer 2 | . . . . . . . . . . . . . . . . . . . . . . . . . . . . . . . . 2 Executioner 1 | . . . . . . . . . . . . . . . . . . . . . 1 . . . . . . . . . . . Packrat 2 | . . . . . . . . . . 2 . . . . . . . . . . . . . . . . . . . . . . Thug 3 | . . . . . . . . . 3 . . . . . . . . . . . . . . . . . . . . . . . Savage 1 | . . . . . . . . . 1 . . . . . . . . . . . . . . . . . . . . . . . Butcher 1 | . . . . . . . . . 1 . . . . . . . . . . . . . . . . . . . . . . . Mutant 1 | . . . . . . . . . 1 . . . . . . . . . . . . . . . . . . . . . . . Commander 1 | . . . . . . . . . 1 . . . . . . . . . . . . . . . . . . . . . . . Best Kill Streak 6 | . . . . . . 4 6 4 5 . . 3 4 . . . . 2 . . 1 2 3 3 . 6 4 4 . 4 2 5 Combat Bots Only 6 | . . . . . . 4 6 4 5 . . 3 4 . . . . . . . 1 2 . 2 . . 1 1 . 1 1 4 Max Kills in Single Turn 1 | . . . . . . 1 1 1 1 1 . 1 1 . . . . 1 . . 1 1 1 1 . 1 1 1 . 1 1 1 Gunslinging . | . . . . . . . . . . . . . . . . . . . . . . . . . . . . . . . . . Exploded 1 | . . . . . . . . 1 . . . . . . . . . . . . . . . . . . 1 . . . . . Melee 1 | . . . . . . 1 1 1 1 . . 1 1 . . . . . . . 1 1 . 1 . . . 1 . 1 1 1 Uniques/NPCs Destroyed 2 | . . . . . . . . . . . . . . . . . . . . . . . . . . . . . . . . 2 MAIN.C Shell (-1/Command) MAIN.C (-1/Command) Combat | -11 -10 -10 -9 -9 -9 -8 -8 -7 -7 -7 -7 -6 -6 -6 -6 -6 -5 -5 -5 -5 -5 -4 -4 -4 -4 -4 -4 -3 -3 -2 -1 -1 -------- Run | Yrd Mat Min Mat Min Exi Min Mat Fac Low Low Dat Pro Fac Low Low Zio Pro Fac Upp Upp War Pro Fac Ext Cet Arc Hub Res Qua Res Acc Com Hostile Shots Fired 1926 | . 25 38 14 20 . 115 260 369 69 . . 41 17 3 9 . 2 30 5 9 48 83 14 8 . . 36 8 100 72 105 426 Missed 645 | . 12 18 9 14 . 34 74 115 14 . . 9 4 1 3 . 1 11 5 3 23 40 9 2 . . 19 4 38 26 29 128 Hits 1281 | . 13 20 5 6 . 81 186 254 55 . . 32 13 2 6 . 1 19 . 6 25 43 5 6 . . 17 4 62 46 76 298 Melee 45 | . . . . 1 . 2 17 10 11 . . . . . . . . . . . 2 . . . . . . . . 2 . . Projectile 1236 | . 13 20 5 5 . 79 169 244 44 . . 32 13 2 6 . 1 19 . 6 23 43 5 6 . . 17 4 62 44 76 298 AOE 13 | . . 4 . . . . . . . . . . . . . . . . . . . . . . . . 1 . . . . 8 Critical Strikes 64 | . 1 . . . . 5 10 9 9 . . . . . . . . 1 . . . . . 1 . . 1 . 9 . 2 16 Actively Blocked 23 | . . . . . . . . 1 5 . . . . . . . . . . . . . . . . . . . . . 2 15 Part Disruptions 12 | . . . . . . . . 1 . . . . . . . . . 1 . . . . . . . . . . . . 1 9 Actively Blocked 1 | . . . . . . . . . . . . . . . . . . . . . . . . . . . . . . . . 1 Damage Taken 25404 | . 181 257 52 82 . 1124 2405 3548 1222 . . 508 204 28 85 . 19 432 . 81 641 674 68 255 48 26 613 89 1374 1206 1652 8530 Core 3683 | . 18 136 23 . . 325 371 354 200 . . 93 32 . 52 . . 99 . . 175 88 21 35 . . 209 23 180 165 195 889 Absorbed by Shields 1589 | . . . . . . 41 669 462 . . . . . . . . . . . . 17 . . 46 . . . . . . . 354 Redirected to Shielding 936 | . . . . . . . 28 75 . . . . . . . . . . . . . . . . . . . 16 . 54 167 596 Ignored by Resistances 671 | . . . . . . . 3 48 . . . . . . . . . . . . . . . . . . . . . . . 620 Regen/Repaired (Parts) 1369 | . . . . . . 10 44 . . . . . . . . . . . . . 7 . . . . . . 678 . 470 . 160 Core Remaining (%) 56 | 100 . 38 . . . 13 32 . . . . 7 . . . . 90 . . . . 63 . . . . 76 . 84 88 . 32 Volleys Fired . | . . . . . . . . . . . . . . . . . . . . . . . . . . . . . . . . . Largest . | . . . . . . . . . . . . . . . . . . . . . . . . . . . . . . . . . Hottest . | . . . . . . . . . . . . . . . . . . . . . . . . . . . . . . . . . Shots Fired . | . . . . . . . . . . . . . . . . . . . . . . . . . . . . . . . . . Gun . | . . . . . . . . . . . . . . . . . . . . . . . . . . . . . . . . . Cannon . | . . . . . . . . . . . . . . . . . . . . . . . . . . . . . . . . . Launcher . | . . . . . . . . . . . . . . . . . . . . . . . . . . . . . . . . . Special . | . . . . . . . . . . . . . . . . . . . . . . . . . . . . . . . . . Kinetic . | . . . . . . . . . . . . . . . . . . . . . . . . . . . . . . . . . Thermal . | . . . . . . . . . . . . . . . . . . . . . . . . . . . . . . . . . Explosive . | . . . . . . . . . . . . . . . . . . . . . . . . . . . . . . . . . Electromagnetic . | . . . . . . . . . . . . . . . . . . . . . . . . . . . . . . . . . Robot Hit Streak . | . . . . . . . . . . . . . . . . . . . . . . . . . . . . . . . . . Robot Miss Streak . | . . . . . . . . . . . . . . . . . . . . . . . . . . . . . . . . . Penetration Max . | . . . . . . . . . . . . . . . . . . . . . . . . . . . . . . . . . Secondary Targets . | . . . . . . . . . . . . . . . . . . . . . . . . . . . . . . . . . Shots Hit Robots 864 | . . . . . . 50 190 214 34 2 . 20 9 . . . . 10 . 13 8 6 14 28 . 9 17 32 . 19 23 166 Core Hits 266 | . . . . . . 9 41 54 11 1 . 6 6 . . . . 5 . 7 3 3 2 9 . 5 15 10 1 3 10 65 Critical Kills 16 | . . . . . . 2 9 3 2 . . . . . . . . . . . . . . . . . . . . . . . Critical Parts Destroyed 67 | . . . . . . 11 34 16 . . . 3 . . . . . . . . . . . 1 . . . . . 2 . . Critical Strikes 146 | . . . . . . 14 47 40 6 . . 4 1 . . . . . . 1 2 1 1 5 . . 1 5 . 2 1 15 Smash 84 | . . . . . . 13 44 19 2 . . 3 . . . . . . . . . . . 1 . . . . . 2 . . Sever 52 | . . . . . . 1 3 21 4 . . 1 1 . . . . . . 1 2 1 . 1 . . 1 1 . . 1 13 Impale 10 | . . . . . . . . . . . . . . . . . . . . . . . 1 3 . . . 4 . . . 2 Melee Attacks 1214 | . . . . 1 . 65 249 261 46 6 . 37 17 4 10 1 1 25 . 17 13 15 25 34 . 13 32 47 . 29 54 212 Impact 460 | . . . . 1 . 53 198 110 18 5 . 24 2 . . . . . . . . . 11 7 . . . 3 . 21 7 . Slashing 642 | . . . . . . 12 51 151 28 1 . 13 15 4 10 1 1 25 . 17 13 5 . 10 . 12 30 18 . 7 42 176 Piercing 112 | . . . . . . . . . . . . . . . . . . . . . . 10 14 17 . 1 2 26 . 1 5 36 Sneak Attacks 173 | . . . . . . 10 41 21 4 2 . 1 4 . . . . 3 . . 1 . 12 16 . 8 9 17 . 10 5 9 Combat Hostiles 17 | . . . . . . 1 4 6 1 . . . . . . . . . . . . . . 4 . . . . . 1 . . Follow-up Attacks 152 | . . . . . . 3 24 49 6 . . 7 1 . . . . 3 . . 2 . . 6 . . 5 10 . 2 1 33 Damage Inflicted 44571 | 20 . 13 . . . 1808 9090 9243 1732 196 . 868 483 . . . . 704 . 1328 492 287 1222 1824 . 1027 1658 2014 47 1527 1163 7825 Guns . | . . . . . . . . . . . . . . . . . . . . . . . . . . . . . . . . . Cannons . | . . . . . . . . . . . . . . . . . . . . . . . . . . . . . . . . . Explosions 703 | . . . . . . . . 189 . . . . . . . . . . . . . . . . . . 514 . . . . . Melee 43781 | . . . . . . 1808 9090 9054 1732 196 . 868 483 . . . . 704 . 1328 492 287 1222 1824 . 1027 1144 2014 . 1527 1163 7818 Ramming 87 | 20 . 13 . . . . . . . . . . . . . . . . . . . . . . . . . . 47 . . 7 Kinetic . | . . . . . . . . . . . . . . . . . . . . . . . . . . . . . . . . . Thermal . | . . . . . . . . . . . . . . . . . . . . . . . . . . . . . . . . . Explosive 189 | . . . . . . . . 189 . . . . . . . . . . . . . . . . . . . . . . . . Electromagnetic 514 | . . . . . . . . . . . . . . . . . . . . . . . . . . . 514 . . . . . Impact 17560 | . . . . . . 1446 7501 4616 650 196 . 641 114 . . . . . . . . . 634 397 . . . 77 . 1105 183 . Slashing 22268 | . . . . . . 362 1589 4438 1082 . . 227 369 . . . . 704 . 1328 492 178 . 450 . 1027 1110 796 . 422 950 6744 Piercing 3953 | . . . . . . . . . . . . . . . . . . . . . . 109 588 977 . . 34 1141 . . 30 1074 Highest Corruption 34 | . . . . . . 20 16 21 34 34 34 34 . . . . . 1 1 1 1 1 . . . . 2 5 7 . 1 22 Average Corruption 9 | . . . . . . 12 6 4 27 34 34 34 . . . . . 1 1 1 1 1 . . . . 2 5 6 . 1 7 Corruption Purged 6 | . . . . . . . . 5 . . . . . . . . . . . 1 . . . . . . . . . . . . Corruption Blocked . | . . . . . . . . . . . . . . . . . . . . . . . . . . . . . . . . . Effects 371 | . . . . . . 22 102 69 52 22 7 33 . . . . . 4 4 3 1 2 . . . . 1 6 2 . . 41 Message Errors 92 | . . . . . . 5 23 15 15 8 1 10 . . . . . 2 1 . . . . . . . . 2 1 . . 9 Matter Fused 98 | . . . . . . 6 25 20 16 3 2 6 . . . . . 1 2 3 . . . . . . . 1 . . . 13 Heat Flow Errors 55 | . . . . . . 7 17 6 9 3 1 5 . . . . . . . . . 1 . . . . 1 . 1 . . 4 Energy Discharges 50 | . . . . . . 2 14 15 2 5 . 4 . . . . . . . . . 1 . . . . . 1 . . . 6 Parts Rejected 5 | . . . . . . . . . 1 . . . . . . . . . . . . . . . . . . . . . . 4 Parts Fused 4 | . . . . . . . 2 1 . . . . . . . . . . . . . . . . . . . . . . . 1 Data Loss (minor) 45 | . . . . . . 1 16 6 7 3 1 5 . . . . . 1 1 . . . . . . . . 1 . . . 3 Data Loss (major) 11 | . . . . . . . 4 3 . . 1 1 . . . . . . . . . . . . . . . 1 . . . 1 Alerts 8 | . . . . . . 1 1 2 1 . 1 1 . . . . . . . . 1 . . . . . . . . . . . Misdirections 3 | . . . . . . . . 1 1 . . 1 . . . . . . . . . . . . . . . . . . . . Overload Shots . | . . . . . . . . . . . . . . . . . . . . . . . . . . . . . . . . . Overflow Damage 8960 | . . . . . . 485 2770 1454 405 77 . 195 42 . . . . 4 . 403 8 43 464 486 . 263 268 481 . 634 99 379 Projectiles . | . . . . . . . . . . . . . . . . . . . . . . . . . . . . . . . . . Explosions 10 | . . . . . . . . . . . . . . . . . . . . . . . . . . . 10 . . . . . Melee 8950 | . . . . . . 485 2770 1454 405 77 . 195 42 . . . . 4 . 403 8 43 464 486 . 263 258 481 . 634 99 379 Knockbacks 71 | . . 1 . . . 4 26 21 2 . . 2 . . . . . . . . . . 5 1 . . . . 1 5 3 . Impact 68 | . . 1 . . . 4 23 21 2 . . 2 . . . . . . . . . . 5 1 . . . . 1 5 3 . Kinetic . | . . . . . . . . . . . . . . . . . . . . . . . . . . . . . . . . . Secondary 3 | . . . . . . . 3 . . . . . . . . . . . . . . . . . . . . . . . . . Self-Inflicted Damage 104 | . . . . . . . . 81 . . . . . . . . . . . . . . . . . . . . 23 . . . Shots 1 | . . . . . . . . 1 . . . . . . . . . . . . . . . . . . . . . . . . Rammed 2 | . . . . . . . . . . . . . . . . . . . . . . . . . . . . . 1 . . 1 Targets Rammed 17 | 7 . 8 . . . . . . . . . . . . . . . . . . . . . . . . . . 1 . . 1 Kicked 15 | 7 . 8 . . . . . . . . . . . . . . . . . . . . . . . . . . . . . . Crushed . | . . . . . . . . . . . . . . . . . . . . . . . . . . . . . . . . . Highest Temperature 344 | . 24 . . 1 . 219 282 252 268 272 232 260 5 . 8 . 5 33 . . 75 204 4 344 40 . 89 9 162 6 7 159 Average Temperature 51 | . 15 . . 1 . 77 103 104 89 132 124 100 1 . 5 . 5 6 . . 25 99 4 22 9 . 37 3 91 5 6 51 Received Heat Transfer 4396 | . 117 . 9 18 . 607 846 650 342 . . 162 . . 21 . 9 81 . . 132 . . 382 . . 12 . 286 38 45 639 Effects 1 | . . . . . . . 1 . . . . . . . . . . . . . . . . . . . . . . . . . Energy Bleed 1 | . . . . . . . 1 . . . . . . . . . . . . . . . . . . . . . . . . . Siege Activations . | . . . . . . . . . . . . . . . . . . . . . . . . . . . . . . . . . Martial Activations . | . . . . . . . . . . . . . . . . . . . . . . . . . . . . . . . . . Shielding Activations . | . . . . . . . . . . . . . . . . . . . . . . . . . . . . . . . . . Robots Disrupted . | . . . . . . . . . . . . . . . . . . . . . . . . . . . . . . . . . Combat Hostiles . | . . . . . . . . . . . . . . . . . . . . . . . . . . . . . . . . . Robots Corrupted 77 | . . . . . . 8 37 18 1 . . 2 . . . . . . . . . . 3 1 . . 1 . . 6 . . Combat Hostiles 56 | . . . . . . 7 26 17 1 . . 2 . . . . . . . . . . . . . . . . . 3 . . Parts Fried 85 | . . . . . . 3 48 15 3 . . . . . . . . . . . . . 5 3 . . 2 . . 6 . . Impact Corruptions 207 | . . . . . . 20 89 49 9 2 . 6 . . . . . . . . . . 8 8 . . . . . 16 . . Robots Melted . | . . . . . . . . . . . . . . . . . . . . . . . . . . . . . . . . . Combat Hostiles . | . . . . . . . . . . . . . . . . . . . . . . . . . . . . . . . . . Parts Melted . | . . . . . . . . . . . . . . . . . . . . . . . . . . . . . . . . . Heat Transferred . | . . . . . . . . . . . . . . . . . . . . . . . . . . . . . . . . . Parts Sabotaged 6 | . . . . . . . . . . . . . . . . . . . . . 6 . . . . . . . . . . . Parts Stolen . | . . . . . . . . . . . . . . . . . . . . . . . . . . . . . . . . . Parts Stripped . | . . . . . . . . . . . . . . . . . . . . . . . . . . . . . . . . . Power Chain Reactions . | . . . . . . . . . . . . . . . . . . . . . . . . . . . . . . . . . Alert | -11 -10 -10 -9 -9 -9 -8 -8 -7 -7 -7 -7 -6 -6 -6 -6 -6 -5 -5 -5 -5 -5 -4 -4 -4 -4 -4 -4 -3 -3 -2 -1 -1 ------- Run | Yrd Mat Min Mat Min Exi Min Mat Fac Low Low Dat Pro Fac Low Low Zio Pro Fac Upp Upp War Pro Fac Ext Cet Arc Hub Res Qua Res Acc Com Maximum Alert Level 5 | . . . . . . . 3 3 . . . . . . . . . 2 . . . . 1 2 1 1 3 2 5 4 1 2 Low Security (%) 50 | 100 100 100 100 100 . 100 55 . . . . . 100 . . . . 57 . . . . 63 50 1 98 42 50 1 . 68 42 Level 1 15 | . . . . . . . 10 2 . . . . . . . . . 34 . . . . 36 20 98 1 54 40 . 98 31 6 Level 2 21 | . . . . . . . 19 55 . . . . . . . . . 8 . . . . . 29 . . . 9 . . . 51 Level 3 11 | . . . . . . . 13 41 . . . . . . . . . . . . . . . . . . 3 . . . . . Level 4 . | . . . . . . . . . . . . . . . . . . . . . . . . . . . . . . 1 . . Level 5 . | . . . . . . . . . . . . . . . . . . . . . . . . . . . . . . . . . High Security . | . . . . . . . . . . . . . . . . . . . . . . . . . . . . . . . . . Max Security . | . . . . . . . . . . . . . . . . . . . . . . . . . . . . . 98 . . . Sterilizations 1 | . . . . . . . 1 . . . . . . . . . . . . . . . . . . . . . . . . . Peak Influence 1600 | . . . . 80 . 131 1029 1054 . . . . 70 . . . . 414 . . . . 244 552 360 203 768 419 1600 1100 259 595 Initial 1100 | . . . . . . . 7 467 . . . . . . . . . 88 . . . . 244 68 270 95 . 402 85 1100 145 142 Average 306 | . . . . 22 . 79 347 673 . . . . 21 . . . . 205 . . . . 186 279 296 31 182 240 1556 285 151 333 Influence Increases 12714 | . . . . 181 . 480 1799 1607 110 . . 239 171 105 120 . 210 697 30 . 928 300 260 1076 348 266 1296 413 2 339 582 1155 Destroy 0b10 Robot/C 5000 | . . . . . . 320 1100 1040 40 . . 180 80 . . . . . . . 500 80 . 460 160 80 140 20 . 60 100 640 Destroy 0b10 Robot/NC 720 | . . . . . . 20 170 60 10 . . . 10 . . . . 25 . . 5 . 50 80 10 45 70 60 . 45 15 45 Destroy Leader 842 | . . . . . . 50 262 264 . . . 30 10 . . . . 6 . . . 10 . 30 . . 18 18 . 24 30 90 Allied During Kill 1010 | . . . . . . . . 1 . . . 14 . . . . . . . . 213 . . 427 170 111 70 . . . . 4 Trap Triggered on 0b10 10 | . . . . . . . . . . . . . . . . . . 10 . . . . . . . . . . . . . . Successful Hack 639 | . . . . . . . 42 16 . . . . 36 . . . . 65 . . . . 29 . . . 52 75 . 33 179 112 Select Force Hacks 50 | . . . . . . . . . . . . . . . . . . . . . . . . . . . 50 . . . . . Disable Machine 225 | . . . . . . . . 30 . . . . . . . . . . . . . . . . . 15 180 . . . . . Anti-Garrison Action 400 | . . . . . . . . . . . . . . . . . . 200 . . . . . . . . 200 . . . . . Destroy Structure 558 | . . . . 1 . . . 31 . . . . 5 . . . . 16 . . . . 16 34 8 . 366 10 2 12 48 9 Advance Influence 150 | . . . . . . . . . . . . . . . . . . . . . . . 150 . . . . . . . . . Partial Spotted 225 | . . . . . . . 30 . . . . . 15 . . . . 105 . . . . . 30 . 15 . . . . 15 15 Lose Combat Pursuer 2685 | . . . . 180 . 90 195 165 60 . . 15 15 105 120 . 210 270 30 . 210 210 15 15 . . 150 30 . 165 195 240 Miscellaneous 200 | . . . . . . . . . . . . . . . . . . . . . . . . . . . . 200 . . . . Influence Decreases 13917 | . . . . 129 52 460 790 1582 955 209 . 239 161 30 125 80 70 440 218 209 402 676 270 732 594 504 528 1028 138 1867 602 827 Entered New Map 3694 | . . . . . 52 . 13 562 391 40 . . . 4 17 80 . 52 148 40 . 526 56 72 214 143 . 366 68 671 98 81 Time Decay 6867 | . . . . 129 . 350 737 770 434 169 . 191 141 26 108 . 70 368 70 169 232 70 214 410 140 281 190 362 . 416 334 486 Search Patrol Dispatched 100 | . . . . . . . . . . . . . . . . . . . . . . . . . . . . . . . 100 . Lost Part 1010 | . . . . . . 110 40 250 90 . . . 10 . . . . 10 . . 10 60 . . . . 40 . 30 30 70 260 Lost Ally 782 | . . . . . . . . . 40 . . 48 10 . . . . 10 . . 160 20 . 100 240 80 34 . 40 . . . Purge Threat 1464 | . . . . . . . . . . . . . . . . . . . . . . . . 150 . . 264 300 . 750 . . Squads Dispatched 94 | . 1 1 . . . . 9 22 . . . . 4 . . . 1 11 . 1 . . 3 2 . . 8 8 1 3 9 10 Investigation 26 | . . 1 . . . . 1 1 . . . . 3 . . . . 5 . 1 . . 1 . . . 4 4 . 2 2 1 Extermination 20 | . . . . . . . . 8 . . . . . . . . . 3 . . . . 1 . . . 1 . . . 3 4 Reinforcement 34 | . 1 . . . . . 2 10 . . . . 1 . . . . 3 . . . . 1 2 . . 3 4 1 1 1 4 Assault 8 | . . . . . . . 3 3 . . . . . . . . 1 . . . . . . . . . . . . . . 1 Garrison 6 | . . . . . . . 3 . . . . . . . . . . . . . . . . . . . . . . . 3 . Intercept . | . . . . . . . . . . . . . . . . . . . . . . . . . . . . . . . . . Searches Triggered 1 | . . . . . . . . . . . . . . . . . . . . . . . . . . . . . . . 1 . Data Miner Redirects 1 | . . . . . . . . . . . . . . . . . . . . . . . . . . . . . . . . 1 Construction Impeded 3 | . . . . . . . . . . . . . . . . . . . . . . . . 2 . . . . . 1 . . Haulers Reinforced 4 | . . . . . . . . . . . . . . . . . . 1 . . . . . . . . . 3 . . . . Active Scanning Responses . | . . . . . . . . . . . . . . . . . . . . . . . . . . . . . . . . . Cargo Convoy Interrupts 1 | . . . . . . . . 1 . . . . . . . . . . . . . . . . . . . . . . . . Stealth | -11 -10 -10 -9 -9 -9 -8 -8 -7 -7 -7 -7 -6 -6 -6 -6 -6 -5 -5 -5 -5 -5 -4 -4 -4 -4 -4 -4 -3 -3 -2 -1 -1 --------- Run | Yrd Mat Min Mat Min Exi Min Mat Fac Low Low Dat Pro Fac Low Low Zio Pro Fac Upp Upp War Pro Fac Ext Cet Arc Hub Res Qua Res Acc Com Distress Signals 53 | . . . 1 . . . 9 1 . . . . . . . . . . . . . . 1 3 2 . 1 9 1 9 4 12 Communications Jammed . | . . . . . . . . . . . . . . . . . . . . . . . . . . . . . . . . . Distress Signals . | . . . . . . . . . . . . . . . . . . . . . . . . . . . . . . . . . Times Spotted 644 | . 5 9 9 13 . 20 96 75 18 . . 16 9 5 7 . 7 21 3 3 82 26 7 15 12 2 17 10 20 34 28 75 Peak Tracking Total 17 | . 5 4 13 4 . 3 8 6 5 . . 4 4 7 4 . 9 7 3 1 17 9 5 4 5 . 13 5 15 7 10 13 Tactical Retreats 90 | . . 3 . 5 . 4 11 8 2 . . 1 1 2 2 . 5 9 2 . 5 5 1 1 . . 5 1 1 6 4 6 Traps | -11 -10 -10 -9 -9 -9 -8 -8 -7 -7 -7 -7 -6 -6 -6 -6 -6 -5 -5 -5 -5 -5 -4 -4 -4 -4 -4 -4 -3 -3 -2 -1 -1 ------- Run | Yrd Mat Min Mat Min Exi Min Mat Fac Low Low Dat Pro Fac Low Low Zio Pro Fac Upp Upp War Pro Fac Ext Cet Arc Hub Res Qua Res Acc Com Traps Triggered 11 | . . . . . . . 4 1 . . . . . . . . . . . . . . . 3 . . . . 1 . . 2 Indirectly . | . . . . . . . . . . . . . . . . . . . . . . . . . . . . . . . . . Trap Hack Attempts . | . . . . . . . . . . . . . . . . . . . . . . . . . . . . . . . . . Triggered . | . . . . . . . . . . . . . . . . . . . . . . . . . . . . . . . . . Disarmed . | . . . . . . . . . . . . . . . . . . . . . . . . . . . . . . . . . Reprogrammed 6 | . . . . . . . . . . . . . . . . . . 6 . . . . . . . . . . . . . . Reused 2 | . . 1 . . . . . . . . . . . . . . . 1 . . . . . . . . . . . . . . Traps Extracted . | . . . . . . . . . . . . . . . . . . . . . . . . . . . . . . . . . Installed 3 | . . 3 . . . . . . . . . . . . . . . . . . . . . . . . . . . . . . Triggered 1 | . . . . . . . . . . . . . . . . . . 1 . . . . . . . . . . . . . . Most Traps Carried 3 | . . 3 . . . . . . . . . . . . . . . . . . . . . . . . . . . . . . Objects Rigged 3 | . . . . . . . . . . . . . . . . . . . . . . . . . . . 3 . . . . . Exploded 1 | . . . . . . . . . . . . . . . . . . . . . . . . . . . 1 . . . . . Machines | -11 -10 -10 -9 -9 -9 -8 -8 -7 -7 -7 -7 -6 -6 -6 -6 -6 -5 -5 -5 -5 -5 -4 -4 -4 -4 -4 -4 -3 -3 -2 -1 -1 ---------- Run | Yrd Mat Min Mat Min Exi Min Mat Fac Low Low Dat Pro Fac Low Low Zio Pro Fac Upp Upp War Pro Fac Ext Cet Arc Hub Res Qua Res Acc Com Machines Disabled 17 | . . . . . . . . 2 . . . . . . . . 1 . . . . . . 1 . 1 12 . . . . . Max in Single Turn 10 | . . . . . . . . 2 . . . . . . . . 1 . . . . . . . . . 10 . . . . . Garrison Access 8 | . . . . . . . 1 . . . . . 1 . . . . 1 . . . . 1 . . . 2 . . 1 1 . Network Hub 4 | . . . . . . . . . . . . . . . . . . . . . . . . . . . 4 . . . . . Machines Repaired . | . . . . . . . . . . . . . . . . . . . . . . . . . . . . . . . . . Machines Dismantled . | . . . . . . . . . . . . . . . . . . . . . . . . . . . . . . . . . Machines Sabotaged 1 | . . . . . . . . . . . . . . . . . . . . . . . . . . . 1 . . . . . Overloaded Fab Kills . | . . . . . . . . . . . . . . . . . . . . . . . . . . . . . . . . . Hacking | -11 -10 -10 -9 -9 -9 -8 -8 -7 -7 -7 -7 -6 -6 -6 -6 -6 -5 -5 -5 -5 -5 -4 -4 -4 -4 -4 -4 -3 -3 -2 -1 -1 --------- Run | Yrd Mat Min Mat Min Exi Min Mat Fac Low Low Dat Pro Fac Low Low Zio Pro Fac Upp Upp War Pro Fac Ext Cet Arc Hub Res Qua Res Acc Com Machines Accessed 106 | . . 1 1 1 2 . 13 4 2 . 4 . 10 . 2 1 . 17 . 3 3 . 5 2 . . 12 7 . 4 7 5 Terminals 54 | . . 1 . . . . 8 1 . . . . 6 . 1 . . 9 . 1 . . 3 1 . . 10 4 . 2 4 3 Fabricators 10 | . . . . . . . . 1 . . . . 1 . . . . 4 . . . . . . . . . 1 . 1 2 . Repair Stations 8 | . . . . . . . 1 . . . . . 1 . . . . 2 . . . . . 1 . . . 1 . 1 . 1 Recycling Units 4 | . . . . . . . 2 1 . . . . . . . . . . . . . . . . . . . . . . . 1 Scanalyzers 8 | . . . 1 . . . 2 1 . . . . 1 . . . . 1 . . . . 1 . . . . 1 . . . . Garrison Access 6 | . . . . . . . . . . . . . 1 . . . . 1 . . . . 1 . . . 2 . . . 1 . Total Hacks 391 | . . 2 2 1 5 . 41 13 4 . 28 . 29 . 2 4 . 60 . 9 11 . 9 4 . . 41 50 . 23 33 20 Successful 248 | . . . 1 1 5 . 21 5 4 . 28 . 15 . 2 4 . 42 . 9 11 . 6 1 . . 26 23 . 13 20 11 Failed 141 | . . 2 . . . . 20 8 . . . . 14 . . . . 18 . . . . 3 3 . . 15 26 . 10 13 9 Catastrophic 17 | . . 1 . . . . 3 1 . . . . 1 . . . . 3 . . . . . . . . . 4 . 2 2 . Database Lockouts 2 | . . . 1 . . . . . . . . . . . . . . . . . . . . . . . . 1 . . . . Manual 126 | . . 2 . . 1 . 23 3 . . . . 14 . . . 1 27 . . 1 . 3 . 1 . 16 5 . 5 14 10 Terminals 194 | . . 2 . . . . 23 2 . . . . 20 . 1 . . 30 . 3 . . 6 2 . . 35 25 . 13 25 7 Fabricators 42 | . . . . . . . . 4 . . . . 1 . . . . 22 . . . . . . . . . 4 . 5 6 . Repair Stations 38 | . . . . . . . 3 . . . . . 3 . . . . 3 . . . . . 2 . . . 15 . 5 . 7 Recycling Units 18 | . . . . . . . 9 3 . . . . . . . . . . . . . . . . . . . . . . . 6 Scanalyzers 25 | . . . 2 . . . 6 4 . . . . 3 . . . . 2 . . . . 2 . . . . 6 . . . . Garrison Access 14 | . . . . . . . . . . . . . 2 . . . . 3 . . . . 1 . . . 6 . . . 2 . Terminal Hacks 124 | . . . . 1 5 . 2 1 4 . 28 . 2 . 2 4 . 10 . 9 11 . 2 1 . . 14 7 . 8 11 2 Record 27 | . . . . . 4 . . . 3 . 11 . . . 1 . . . . 8 . . . . . . . . . . . . Part Schematic 21 | . . . . . . . . . . . 10 . . . . 4 . 3 . . . . . . . . 2 . . . 2 . Robot Schematic 4 | . . . . . . . . . . . 4 . . . . . . . . . . . . . . . . . . . . . Prototype ID Bank 14 | . . . . . . . . . . . 3 . . . . . . 1 . . 10 . . . . . . . . . . . Open Door 6 | . . . . 1 . . . . 1 . . . . . 1 . . . . 1 1 . . . . . . . . . . 1 Level Access Points 3 | . . . . . . . . . . . . . . . . . . . . . . . . . . . 1 1 . . 1 . Branch Access Points 6 | . . . . . . . 1 . . . . . 1 . . . . 1 . . . . 1 . . . . . . 1 1 . Terminal Index 3 | . . . . . . . . . . . . . . . . . . 1 . . . . . . . . 1 . . . 1 . Fabricator Index 1 | . . . . . . . . . . . . . . . . . . . . . . . . . . . . . . . 1 . Garrison Index 2 | . . . . . . . . . . . . . . . . . . 1 . . . . . . . . . 1 . . . . Unreport Threat 12 | . . . . . . . . . . . . . . . . . . . . . . . . 1 . . 2 4 . 5 . . Locate Traps 6 | . . . . . . . 1 . . . . . . . . . . 1 . . . . 1 . . . 1 . . . 1 1 Reprogram Traps 1 | . . . . . . . . . . . . . . . . . . 1 . . . . . . . . . . . . . . Maintenance Status 1 | . . . . . . . . . . . . . . . . . . . . . . . . . . . . . . . 1 . Recall Extermination 2 | . . . . . . . . . . . . . . . . . . 1 . . . . . . . . 1 . . . . . Hauler Manifests 3 | . . . . . . . . 1 . . . . 1 . . . . . . . . . . . . . . . . 1 . . Registered Components 3 | . . . . . . . . . . . . . . . . . . . . . . . . . . . 1 . . 1 1 . Registered Prototypes 1 | . . . . . . . . . . . . . . . . . . . . . . . . . . . . . . . 1 . Zone Layout 7 | . . . . . . . . . . . . . . . . . . . . . . . . . . . 5 1 . . 1 . Proto ID Catalog 1 | . . . . . 1 . . . . . . . . . . . . . . . . . . . . . . . . . . . Fabricator Hacks 22 | . . . . . . . . 2 . . . . . . . . . 12 . . . . . . . . . 2 . 2 4 . Network Status 2 | . . . . . . . . 1 . . . . . . . . . 1 . . . . . . . . . . . . . . Load Schematic 11 | . . . . . . . . . . . . . . . . . . 7 . . . . . . . . . 1 . 1 2 . Build 9 | . . . . . . . . 1 . . . . . . . . . 4 . . . . . . . . . 1 . 1 2 . Repair Station Hacks 20 | . . . . . . . 2 . . . . . 1 . . . . 3 . . . . . . . . . 8 . 3 . 3 Scan Component 9 | . . . . . . . 1 . . . . . . . . . . 1 . . . . . . . . . 4 . 1 . 2 Repair 8 | . . . . . . . 1 . . . . . . . . . . 1 . . . . . . . . . 4 . 1 . 1 Refit 3 | . . . . . . . . . . . . . 1 . . . . 1 . . . . . . . . . . . 1 . . Recycling Unit Hacks 4 | . . . . . . . 2 1 . . . . . . . . . . . . . . . . . . . . . . . 1 Report Inventory 1 | . . . . . . . 1 . . . . . . . . . . . . . . . . . . . . . . . . . Retrieve Components 3 | . . . . . . . 1 1 . . . . . . . . . . . . . . . . . . . . . . . 1 Scanalyzer 13 | . . . 1 . . . 5 . . . . . . . . . . 2 . . . . 2 . . . . 3 . . . . Insert Component 3 | . . . . . . . 1 . . . . . . . . . . 1 . . . . . . . . . 1 . . . . Analyze 3 | . . . . . . . 1 . . . . . . . . . . 1 . . . . . . . . . 1 . . . . Retrieve Study 7 | . . . 1 . . . 3 . . . . . . . . . . . . . . . 2 . . . . 1 . . . . Garrison Access Hacks 4 | . . . . . . . . . . . . . 1 . . . . . . . . . 1 . . . 1 . . . 1 . Seal Access 4 | . . . . . . . . . . . . . 1 . . . . . . . . . 1 . . . 1 . . . 1 . Unauthorized Hacks 59 | . . . . . . . 10 1 . . . . 11 . . . . 15 . . . . 1 . . . 11 1 . . 4 5 Terminals 40 | . . . . . . . 7 . . . . . 10 . . . . 8 . . . . 1 . . . 10 . . . 3 1 Track 2 | . . . . . . . . . . . . . . . . . . . . . . . . . . . 2 . . . . . Assimilate 3 | . . . . . . . . . . . . . 2 . . . . 1 . . . . . . . . . . . . . . Botnet 12 | . . . . . . . 2 . . . . . 2 . . . . 2 . . . . 1 . . . 2 . . . 2 1 Detonate 3 | . . . . . . . . . . . . . . . . . . . . . . . . . . . 3 . . . . . Operators 1 | . . . . . . . . . . . . . . . . . . . . . . . . . . . . . . . 1 . Skim 16 | . . . . . . . 5 . . . . . 6 . . . . 5 . . . . . . . . . . . . . . Sabotage 3 | . . . . . . . . . . . . . . . . . . . . . . . . . . . 3 . . . . . Fabricators 8 | . . . . . . . . . . . . . 1 . . . . 6 . . . . . . . . . . . . 1 . Prioritize 2 | . . . . . . . . . . . . . . . . . . 1 . . . . . . . . . . . . 1 . Fabnet 1 | . . . . . . . . . . . . . . . . . . 1 . . . . . . . . . . . . . . Haulers 1 | . . . . . . . . . . . . . . . . . . 1 . . . . . . . . . . . . . . Recompile 4 | . . . . . . . . . . . . . 1 . . . . 3 . . . . . . . . . . . . . . Repair Stations 2 | . . . . . . . . . . . . . . . . . . . . . . . . . . . . 1 . . . 1 Mechanics 1 | . . . . . . . . . . . . . . . . . . . . . . . . . . . . 1 . . . . Patch 1 | . . . . . . . . . . . . . . . . . . . . . . . . . . . . . . . . 1 Recycling Units 7 | . . . . . . . 3 1 . . . . . . . . . . . . . . . . . . . . . . . 3 Reject 3 | . . . . . . . 2 . . . . . . . . . . . . . . . . . . . . . . . . 1 Recyclers 1 | . . . . . . . . . . . . . . . . . . . . . . . . . . . . . . . . 1 Mask 3 | . . . . . . . 1 1 . . . . . . . . . . . . . . . . . . . . . . . 1 Scanalyzers . | . . . . . . . . . . . . . . . . . . . . . . . . . . . . . . . . . Garrison Access 2 | . . . . . . . . . . . . . . . . . . 1 . . . . . . . . 1 . . . . . Jam 2 | . . . . . . . . . . . . . . . . . . 1 . . . . . . . . 1 . . . . . Data Cores Recovered 1 | . . . . . . . . . . . . . . . . . . . . . . . . 1 . . . . . . . . Used . | . . . . . . . . . . . . . . . . . . . . . . . . . . . . . . . . . Hacking Detections 76 | . . 1 . . . . 12 3 . . . . 9 . . . . 14 . 1 . . 4 2 . . 9 7 . 3 7 4 Full Trace Events 14 | . . 1 . . . . 2 1 . . . . 2 . . . . 1 . 1 . . 1 . . . . 1 . 2 2 . Feedback Events 3 | . . . . . . . 1 . . . . . 1 . . . . 1 . . . . . . . . . . . . . . Corruption 2 | . . . . . . . 1 . . . . . . . . . . 1 . . . . . . . . . . . . . . Hackware Fried 1 | . . . . . . . . . . . . . 1 . . . . . . . . . . . . . . . . . . . Feedback Blocked . | . . . . . . . . . . . . . . . . . . . . . . . . . . . . . . . . . Robot Schematics Acquired 8 | . . . . . . . . . . . 4 . . . . 4 . . . . . . . . . . . . . . . . Robots Built . | . . . . . . . . . . . . . . . . . . . . . . . . . . . . . . . . . Authchips . | . . . . . . . . . . . . . . . . . . . . . . . . . . . . . . . . . Time . | . . . . . . . . . . . . . . . . . . . . . . . . . . . . . . . . . Total Robot Build Rating . | . . . . . . . . . . . . . . . . . . . . . . . . . . . . . . . . . Part Schematics Acquired 38 | . . . . . . . 1 . . . 10 . . . . 18 . 4 . . . . . . . . 2 1 . . 2 . Parts Built 11 | . . . . . . . . 1 . . . . . . . . . 4 . . . . . . . . . 2 . 2 2 . Authchips 4 | . . . . . . . . . . . . . . . . . . 4 . . . . . . . . . . . . . . Time 521 | . . . . . . . . 117 . . . . . . . . . 200 . . . . . . . . . 46 . 46 112 . Total Part Build Rating 82 | . . . . . . . . 7 . . . . . . . . . 25 . . . . . . . . . 18 . 18 14 . Part Studies Acquired 7 | . . . 1 . . . 3 . . . . . . . . . . . . . . . 2 . . . . 1 . . . . Parts Repaired 8 | . . . . . . . 1 . . . . . . . . . . 1 . . . . . . . . . 4 . 1 . 1 Time 306 | . . . . . . . 38 . . . . . . . . . . 43 . . . . . . . . . 145 . 54 . 26 Parts Recycled . | . . . . . . . . . . . . . . . . . . . . . . . . . . . . . . . . . Recycled Matter . | . . . . . . . . . . . . . . . . . . . . . . . . . . . . . . . . . Retrieved Matter . | . . . . . . . . . . . . . . . . . . . . . . . . . . . . . . . . . Retrieved Components 19 | . . . . . . . 9 9 . . . . . . . . . . . . . . . . . . . . . . . 1 Parts Scanalyzed 3 | . . . . . . . 1 . . . . . . . . . . 1 . . . . . . . . . 1 . . . . Part Schematics Acquired 3 | . . . . . . . 1 . . . . . . . . . . 1 . . . . . . . . . 1 . . . . Parts Damaged 1 | . . . . . . . . . . . . . . . . . . 1 . . . . . . . . . . . . . . Bothacking | -11 -10 -10 -9 -9 -9 -8 -8 -7 -7 -7 -7 -6 -6 -6 -6 -6 -5 -5 -5 -5 -5 -4 -4 -4 -4 -4 -4 -3 -3 -2 -1 -1 ------------ Run | Yrd Mat Min Mat Min Exi Min Mat Fac Low Low Dat Pro Fac Low Low Zio Pro Fac Upp Upp War Pro Fac Ext Cet Arc Hub Res Qua Res Acc Com Used RIF Installer . | . . . . . . . . . . . . . . . . . . . . . . . . . . . . . . . . . Robots Hacked 4 | . . . . . . . . . . . . . . . . . . . . . . 1 . . . . . 1 2 . . . Non-combat . | . . . . . . . . . . . . . . . . . . . . . . . . . . . . . . . . . Combat 4 | . . . . . . . . . . . . . . . . . . . . . . 1 . . . . . 1 2 . . . Robot Hacks Applied . | . . . . . . . . . . . . . . . . . . . . . . . . . . . . . . . . . Relay Couplers Released 1 | . . . . . . . 1 . . . . . . . . . . . . . . . . . . . . . . . . . Machine Destruction 1 | . . . . . . . 1 . . . . . . . . . . . . . . . . . . . . . . . . . Fabnet Peak Effective % 3 | . . . . . . . . . . . . . . . . . . . . . . 3 3 3 3 3 3 1 1 . . . Autooverrided 4 | . . . . . . . . . . . . . . . . . . . . . . 1 . . . . . 1 2 . . . Robots Rewired 27 | . . . . . . . . . 2 . . . . . . . . . . 3 4 . . 18 . . . . . . . . Allies Hacked . | . . . . . . . . . . . . . . . . . . . . . . . . . . . . . . . . . Hacks Repelled . | . . . . . . . . . . . . . . . . . . . . . . . . . . . . . . . . . Allies | -11 -10 -10 -9 -9 -9 -8 -8 -7 -7 -7 -7 -6 -6 -6 -6 -6 -5 -5 -5 -5 -5 -4 -4 -4 -4 -4 -4 -3 -3 -2 -1 -1 -------- Run | Yrd Mat Min Mat Min Exi Min Mat Fac Low Low Dat Pro Fac Low Low Zio Pro Fac Upp Upp War Pro Fac Ext Cet Arc Hub Res Qua Res Acc Com Total Allies 51 | . . . . 1 . . . . 2 . . 4 2 . . . . 1 . 5 4 1 . 23 5 . . 1 2 . . . Largest Group 18 | . . . . 1 . . . . 2 . . 2 1 1 . . . 1 . 5 7 . . 18 18 7 4 1 . . . . Highest-Rated Group 870 | . . . . 31 . . . . 51 . . 96 10 10 . . . 26 . 152 285 . . 870 856 462 327 42 . . . . Highest-Rated Ally 159 | . . . . 31 . . . . 31 . . 96 10 10 . . . 26 . 31 64 . . 159 159 96 96 42 . . . . Total Orders 60 | . . . . . . . . . 1 . . 11 1 . . . . . . . 36 . . . . 2 1 . . . . 8 STAY 30 | . . . . . . . . . . . . . 1 . . . . . . . 27 . . . . 1 1 . . . . . FOLLOW 10 | . . . . . . . . . . . . . . . . . . . . . 9 . . . . 1 . . . . . . EXPLORE 6 | . . . . . . . . . . . . 6 . . . . . . . . . . . . . . . . . . . . RETURN 14 | . . . . . . . . . 1 . . 5 . . . . . . . . . . . . . . . . . . . 8 Ally Attacks 469 | . . . . . . 1 . 5 8 . . 47 . . . . . . . 2 109 1 . 114 59 24 27 7 2 . . 63 Total Damage 23785 | . . . . . . 4 . 12 92 . . 623 . . . . . . . 42 5478 14 . 3735 1639 938 1127 42 53 . . 9986 Kills 84 | . . . . . . . . . . . . 2 . . . . . . . . 24 . . 26 13 5 10 . . . . 4 Allies Corrupted 1 | . . . . . . . . . . . . . . . . . . 1 . . . . . . . . . . . . . . Allies Melted 3 | . . . . . . . . . . . . . . . . . . . . . . . . . . . . . 1 1 . 1 Turrets Deployed 3 | . . . . . . . . . . . . . . . . . . . . . 3 . . . . . . . . . . . Intel | -11 -10 -10 -9 -9 -9 -8 -8 -7 -7 -7 -7 -6 -6 -6 -6 -6 -5 -5 -5 -5 -5 -4 -4 -4 -4 -4 -4 -3 -3 -2 -1 -1 ------- Run | Yrd Mat Min Mat Min Exi Min Mat Fac Low Low Dat Pro Fac Low Low Zio Pro Fac Upp Upp War Pro Fac Ext Cet Arc Hub Res Qua Res Acc Com Active Infowar (turns) 12706 | . . 442 39 502 90 622 . 48 694 446 124 121 172 135 244 270 163 715 157 592 242 . 260 991 281 2175 492 823 59 1018 721 68 Optics 3620 | . . . . . . . . . . . . . . . . . . . . . . . 184 991 281 2099 . . . . . 65 Sensors 2139 | . . 198 39 502 90 589 . . . . . . . 132 244 270 74 . . . . . . . . . . 1 . . . . A.S.S. 171 | . . . . . . . . 48 123 . . . . . . . . . . . . . . . . . . . . . . . IFF 1200 | . . . . . . . . . . . . . . . . . 89 235 157 592 127 . . . . . . . . . . . Terrain 217 | . . . . . . 217 . . . . . . . . . . . . . . . . . . . . . . . . . . Structural 6817 | . . . . . . . . . . . . . . . . . . . . . . . 260 988 281 2172 492 823 59 1018 721 3 Seismic 431 | . . 244 . . . 187 . . . . . . . . . . . . . . . . . . . . . . . . . . Machine Analysis 1758 | . . . . . . . . . . . . . 172 135 244 270 163 14 . . . . . . . . . . . 760 . . Triangulation 1041 | . . . . . . . . . . . . . . . . . . . . . . . . . . . . . . 842 199 . Jamming 2829 | . . . . . . . . . 571 446 124 121 . . . . . 659 157 572 179 . . . . . . . . . . . Robot Analysis Total . | . . . . . . . . . . . . . . . . . . . . . . . . . . . . . . . . . Derelict Logs Recovered 18 | . . 1 . 3 . . . . 2 1 . 2 . 1 2 2 2 . . 2 . . . . . . . . . . . . Drone Launches 47 | . . . . . . 1 . 5 2 . . 31 . . . . . . . . . . . . . . . . . . . 8 Drone Recoveries 41 | . . . . . . 1 . 5 2 . . 25 . . . . . . . . . . . . . . . . . . . 8 Exploration | -11 -10 -10 -9 -9 -9 -8 -8 -7 -7 -7 -7 -6 -6 -6 -6 -6 -5 -5 -5 -5 -5 -4 -4 -4 -4 -4 -4 -3 -3 -2 -1 -1 ------------- Run | Yrd Mat Min Mat Min Exi Min Mat Fac Low Low Dat Pro Fac Low Low Zio Pro Fac Upp Upp War Pro Fac Ext Cet Arc Hub Res Qua Res Acc Com Turns Passed 27706 | 157 92 1472 39 502 90 792 4729 4657 1073 446 124 674 417 135 244 270 163 848 157 592 1340 253 456 991 281 2175 492 828 59 1018 756 1384 Spaces Moved 26151 | 127 74 1810 93 770 249 600 2063 1470 577 265 77 296 540 450 668 959 578 1864 459 1174 2059 391 793 877 227 529 953 1348 85 1653 829 1244 Core 329 | 14 . 67 . . . 13 . . . . . . . . . . . . . . . . . . . 235 . . . . . . Treads 3959 | . . . . . . . 1930 944 318 265 77 296 121 . . . . . . . . . . . . . . . . . . 8 Legs 1820 | 113 74 390 . . . 337 121 526 259 . . . . . . . . . . . . . . . . . . . . . . . Wheels 12 | . . . . . . . 12 . . . . . . . . . . . . . . . . . . . . . . . . . Hover 8749 | . . . . . . . . . . . . . . . . . . . . . 381 248 618 877 227 294 953 1348 85 1653 829 1236 Flight 11282 | . . 1353 93 770 249 250 . . . . . . 419 450 668 959 578 1864 459 1174 1678 143 175 . . . . . . . . . Fastest Speed 23 | 50 120 37 37 34 34 34 110 120 112 160 162 162 27 27 27 27 27 23 28 28 26 32 35 39 35 35 38 38 43 42 42 31 Average Speed 67 | 112 120 56 37 34 34 87 158 152 143 160 162 162 57 27 27 27 27 26 28 28 30 41 40 39 39 376 38 42 43 42 49 45 Slowest Speed 800 | 120 120 120 37 37 34 120 240 400 187 162 162 162 162 27 27 27 27 29 28 103 106 57 46 45 45 800 44 126 47 48 145 225 Overloaded Moves 69 | . . . . . . . . . . . . . . . . . . . . . . . . . . . . . . . . 69 Propulsion Burnouts . | . . . . . . . . . . . . . . . . . . . . . . . . . . . . . . . . . Robots Hopped 58 | . . 12 1 21 . . . . . . . . 3 2 2 . . 9 . . 8 . . . . . . . . . . . Potential Cave-ins . | . . . . . . . . . . . . . . . . . . . . . . . . . . . . . . . . . Cave-ins Triggered . | . . . . . . . . . . . . . . . . . . . . . . . . . . . . . . . . . Exploration Rate (%) 57 | 4 20 99 24 96 61 75 93 7 63 49 69 72 21 59 72 85 79 51 61 94 94 64 19 91 60 94 74 37 20 48 20 34 Regions Visited 32 Branch Regions 22 Pre-discovered Areas 7 | . . 1 . . 1 . 1 . . . 1 . . . . 1 . . . 2 . . . . . . . . . . . . Known Exits Taken 14 | . . . . . . 1 1 1 . . . 1 1 . . . 1 1 . . . 1 1 1 . . 1 1 1 . 1 . Unknown Exits Taken 18 | 1 1 1 1 1 1 . . . 1 1 1 . . 1 1 1 . . 1 1 1 . . . 1 1 . . . 1 . . Scrap Searched 28 | . . 1 . 2 . 2 . . 3 2 . 3 . 1 5 3 1 . 3 2 . . . . . . . . . . . . Spaces Dug 86 | . . . . 1 . . . 2 . . . 5 5 4 10 . . 8 . 3 1 1 8 2 . . 8 5 . 4 16 3 Terrain Destroyed 479 | . . . . 1 . . . 27 . . . 5 5 4 10 . . 8 . 3 1 1 8 2 . . 376 5 . 4 16 3 Melee 86 | . . . . 1 . . . 2 . . . 5 5 4 10 . . 8 . 3 1 1 8 2 . . 8 5 . 4 16 3 Projectile . | . . . . . . . . . . . . . . . . . . . . . . . . . . . . . . . . . AOE 393 | . . . . . . . . 25 . . . . . . . . . . . . . . . . . . 368 . . . . . Terrain Rammed . | . . . . . . . . . . . . . . . . . . . . . . . . . . . . . . . . . Walls Destroyed . | . . . . . . . . . . . . . . . . . . . . . . . . . . . . . . . . . Machines Disabled . | . . . . . . . . . . . . . . . . . . . . . . . . . . . . . . . . . Actions | -11 -10 -10 -9 -9 -9 -8 -8 -7 -7 -7 -7 -6 -6 -6 -6 -6 -5 -5 -5 -5 -5 -4 -4 -4 -4 -4 -4 -3 -3 -2 -1 -1 --------- Run | Yrd Mat Min Mat Min Exi Min Mat Fac Low Low Dat Pro Fac Low Low Zio Pro Fac Upp Upp War Pro Fac Ext Cet Arc Hub Res Qua Res Acc Com Total 34429 | 138 77 2252 94 986 254 759 3107 3525 753 276 76 433 625 452 708 967 582 2177 486 1401 2740 451 877 1468 422 699 1039 1535 105 1920 1121 1924 Wait 6123 | . . 421 . 228 . 57 739 1722 72 . . 90 39 . 33 . 2 244 28 198 573 35 42 391 164 139 55 103 18 175 191 364 Move 26004 | 126 73 1785 90 728 248 599 2062 1469 576 264 76 295 533 445 664 958 577 1845 458 1173 2042 390 792 876 226 528 952 1347 84 1652 828 1243 Hop 56 | . . 12 1 20 . . . . . . . . 3 2 1 . . 9 . . 8 . . . . . . . . . . . Pick Up 223 | 1 2 6 1 2 3 5 20 42 14 2 . 5 6 . . 1 . 13 . . 8 1 2 6 6 2 . 6 . 24 14 31 Fast Attach 200 | 4 1 6 2 2 . 12 15 19 9 . . 1 1 . . 3 1 9 . 2 34 3 11 8 6 8 2 19 . 3 . 19 Attach 128 | . . 1 . 2 . 5 3 21 9 . . . 8 . . . . 9 . . 5 2 2 1 . . . 4 1 11 13 31 Detach 35 | . . 1 . . . 1 1 5 1 . . . 1 . . . . 1 . . 2 2 . . 1 1 . . . 4 3 11 Swap 140 | . . 2 . . 1 7 27 13 7 2 . 9 3 1 . . . 7 . . 6 1 1 5 5 1 3 4 1 9 8 17 Drop 314 | . 1 7 . 3 2 12 31 36 11 3 . 6 16 . . 4 1 20 . 2 39 2 4 12 14 10 3 19 . 14 11 31 Fire . | . . . . . . . . . . . . . . . . . . . . . . . . . . . . . . . . . Melee 997 | . . . . 1 . 61 209 198 35 5 . 27 15 4 10 1 1 20 . 17 11 15 23 24 . 10 24 33 . 26 53 174 Ram 1 | . . . . . . . . . . . . . . . . . . . . . . . . . . . . . 1 . . . Kick 15 | 7 . 8 . . . . . . . . . . . . . . . . . . . . . . . . . . . . . . Crush 1 | . . . . . . . . . . . . . . . . . . . . . . . . . . . . . . . . 1 Escape Stasis 33 | . . . . . . . . . . . . . . . . . . . . . . . . 33 . . . . . . . . Rewire 156 | . . . . . . . . . 19 . . . . . . . . . . 9 12 . . 112 . . . . . 2 . 2 Trap 3 | . . 3 . . . . . . . . . . . . . . . . . . . . . . . . . . . . . . Miscellaneous . | . . . . . . . . . . . . . . . . . . . . . . . . . . . . . . . . . Route ------- -11/Scrapyard -10/Materials -10/Mines (discovered 2 exits: *Mat x2) -9/Materials (discovered 2 exits: Mat / *Min) -9/Mines (discovered 3 exits: *Mat x2 / *Exi) -9/Exiles (discovered 2 exits: [*Min x2]) -8/Mines (discovered 2 exits: *Mat x2) -8/Materials (discovered 3 exits: *Fac x3) -7/Factory (discovered 3 exits: Fac x2 / *Low) -7/Lower Caves -7/Lower Caves (discovered 2 exits: Fac / *Dat) -7/Data Miner -6/Proximity Caves -6/Factory (discovered 4 exits: Fac x2 / *Low x2) -6/Lower Caves -6/Lower Caves (discovered 2 exits: *Fac / *Zio) -6/Zion -5/Proximity Caves -5/Factory (discovered 6 exits: *Fac x4 / *Upp x2) -5/Upper Caves -5/Upper Caves (discovered 2 exits: *Fac / *War) -5/Warlord -4/Proximity Caves -4/Factory (discovered 6 exits: Res x2 / Upp x2 / *Ext x2) -4/Extension (discovered 2 exits: *Res / *Cet) -4/Cetus (discovered 2 exits: *Res / [*Arc]) -4/Archives (discovered 3 exits: *Res / *Hub x2) -4/Hub_04(d) (discovered 4 exits: *Res x4) -3/Research (discovered 4 exits: Res x3 / *Qua) -3/Quarantine -2/Research (discovered 3 exits: *Acc / Tes x2) -1/Access (discovered 2 exits: Sur / *Com) -1/Command (discovered 2 exits: *Sur x2) 0b11 Command History --------- Turn | Location | Event 8 | -11/Scrapyard | Discovered new exit (range 15) 158 | -11/Scrapyard | Entered Materials 238 | -10/Materials | Discovered new exit (range 11) 250 | -10/Materials | Entered Mines 286 | -10/Mines | Found a hidden stash of uninstalled traps 322 | -10/Mines | Build established: Mutant 544 | -10/Mines | Learned location of 1 exit from Materials 595 | -10/Mines | Core integrity fell below 50% 601 | -10/Mines | Lost 4 parts (1p2n1u) 611 | -10/Mines | Found Prototype Launcher 643 | -10/Mines | Discovered new exit (range 13) 782 | -10/Mines | Discovered new exit (range 12) 785 | -10/Mines | Learned location of Storage (-9) 1722 | -10/Mines | Entered Materials 1722 | -9/Materials | Evolved 2 slots: Propulsion x1, Utility x1 1723 | -9/Materials | Identified exit to Materials 1732 | -9/Materials | Central database locked down 1759 | -9/Materials | Discovered new exit (range 5) 1761 | -9/Materials | Entered Mines 1763 | -9/Mines | Found the Drone Emporium 1765 | -9/Mines | Found Prototype Device 1765 | -9/Mines | Identified Splice Drone Bay 1785 | -9/Mines | Learned Materials emergency access door positions 1803 | -9/Mines | Learned Materials garrison access intel 1809 | -9/Mines | Discovered exit to Materials (range 5) 2039 | -9/Mines | Build established: Scavenger-Mutant 2040 | -9/Mines | Discovered exit to Materials (range 8) 2061 | -9/Mines | Assembled infested the area 2131 | -9/Mines | Learned 2 Materials zone layouts 2224 | -9/Mines | Received a Mining Laser from a helpful Derelict 2261 | -9/Mines | Discovered new exit (range 5) 2263 | -9/Mines | Entered Exiles 2269 | -9/Exiles | Discovered new exit (range 15) 2273 | -9/Exiles | Met 8R-AWN 2277 | -9/Exiles | Met EX-HEX 2291 | -9/Exiles | Met EX-DEC 2292 | -9/Exiles | Learned location of Zion (-6) 2300 | -9/Exiles | Met EX-BIN 2304 | -9/Exiles | Aligned with FarCom system 2304 | -9/Exiles | Given EX-Vault access code 2312 | -9/Exiles | Opened EX-Vault 2316 | -9/Exiles | Found Deploy-a-Sentry 2318 | -9/Exiles | Found Deploy-a-Sentry 2319 | -9/Exiles | Found Deploy-a-Sentry 2326 | -9/Exiles | Warned to stay clear of 0b10 Research branches 2350 | -9/Exiles | Discovered new exit (range 11) 2353 | -9/Exiles | Left Exiles lab with Deploy-a-Sentry 2353 | -9/Exiles | Entered Mines 2524 | -8/Mines | Discovered exit to Materials (range 11) 2554 | -8/Mines | Discovered exit to Materials (range 16) 2631 | -8/Mines | System corruption reached 10% 2918 | -8/Mines | Core integrity fell below 50% 2943 | -8/Mines | Build established: Scavenger-Assassin 2944 | -8/Mines | Core integrity fell below 20% 2985 | -8/Mines | Found a Scrap Suit stashed away for nefarious purposes 2988 | -8/Mines | Lost 6 parts (1p2n2u1w) 2988 | -8/Mines | Found Scrap Suit 3145 | -8/Mines | Entered Materials 3145 | -8/Materials | Evolved 2 slots: Propulsion x1, Utility x1 3146 | -8/Materials | Identified exit to Factory 3148 | -8/Materials | Loaded intel: 1 garrison access location 3332 | -8/Materials | Garrison activated, responded to threat 3767 | -8/Materials | Build established: Scavenger-Mutant 4176 | -8/Materials | Repaired Katana? 4578 | -8/Materials | Discovered exit to Factory (range 10) 4822 | -8/Materials | Build established: Mutant 6345 | -8/Materials | First assault squad dispatched 6495 | -8/Materials | Discovered exit to Factory (range 5) 6532 | -8/Materials | Learned 8 Factory zone layouts 6575 | -8/Materials | Learned location of 1 exit from Extension 6607 | -8/Materials | Learned location of 1 exit from Extension 6631 | -8/Materials | Learned location of 1 exit from Storage 6663 | -8/Materials | Learned location of 2 exits from Factory 6707 | -8/Materials | Learned location of 1 exit from Storage 7232 | -8/Materials | Core integrity fell below 50% 7274 | -8/Materials | System corruption reached 10% 7482 | -8/Materials | Sterilization system engaged 7482 | -8/Materials | Non-combat units ordered to evacuate 7582 | -8/Materials | Combat units ordered to evacuate 7782 | -8/Materials | Ambient heat levels rising (+10) 7874 | -8/Materials | Entered Factory 7874 | -7/Factory | Evolved 2 slots: Utility x1, Weapon x1 7875 | -7/Factory | Identified exit to Factory 7876 | -7/Factory | Identified exit to Lower Caves 8385 | -7/Factory | Fabricated Field Propulsion Array? 8793 | -7/Factory | Cargo convoy interrupted 8899 | -7/Factory | Build established: Scavenger-Mutant 9825 | -7/Factory | Build established: Scavenger-Gladiator 9991 | -7/Factory | Lost 4 parts (1p2n1w) 10274 | -7/Factory | First assault squad dispatched 11328 | -7/Factory | Build established: Scavenger-Mutant 12010 | -7/Factory | System corruption reached 10% 12057 | -7/Factory | Core integrity fell below 50% 12060 | -7/Factory | Lost 9 parts (4n3u2w) 12242 | -7/Factory | Found Prototype Device 12304 | -7/Factory | Build established: Scavenger-Gladiator 12483 | -7/Factory | Identified Active Sensor Suite 12531 | -7/Factory | Entered Lower Caves 12716 | -7/Lower Caves | Attacked by a faux Warlord 12760 | -7/Lower Caves | Lost 3 parts (3n) 13034 | -7/Lower Caves | Lost 5 parts (1n2u2w) 13245 | -7/Lower Caves | Learned Factory terminal intel 13261 | -7/Lower Caves | Entered an active Warlord outpost 13283 | -7/Lower Caves | System corruption reached 30% 13298 | -7/Lower Caves | Learned Armory stockpile data 13303 | -7/Lower Caves | Build established: Scavenger-Mutant 13333 | -7/Lower Caves | Destroyed M8-GNH(g) 13577 | -7/Lower Caves | Discovered new exit (range 6) 13604 | -7/Lower Caves | Entered another Lower Caves area 13705 | -7/Lower Caves | Learned Factory non-interactive machine intel 13980 | -7/Lower Caves | Discovered new exit (range 13) 14050 | -7/Lower Caves | Entered Data Miner 14050 | -7/Data Miner | Discovered new exit (range 6) 14081 | -7/Data Miner | Met Data Miner 14114 | -7/Data Miner | Learned location of Section 7 (-2) 14114 | -7/Data Miner | Acquired the access code to Warlord's prototype stash 14138 | -7/Data Miner | Received God Mode back door access code from Data Miner 14174 | -7/Data Miner | Entered Proximity Caves 14183 | -6/Proximity Caves | Core integrity fell below 20% 14317 | -6/Proximity Caves | Spotted B-75 Beast 14320 | -6/Proximity Caves | Escorted by Enhanced Grunt 14451 | -6/Proximity Caves | Destroyed B-75 Beast 14626 | -6/Proximity Caves | Lost 4 allies 14657 | -6/Proximity Caves | Learned Factory stockpile data 14848 | -6/Proximity Caves | Entered Factory 14848 | -6/Factory | Accompanied by 2 allies 14848 | -6/Factory | Evolved 2 slots: Power x1, Propulsion x1 14849 | -6/Factory | Identified exit to Factory 14849 | -6/Factory | Identified exit to Lower Caves 14851 | -6/Factory | Loaded intel: 211 non-interactive machine locations 14852 | -6/Factory | Loaded intel: 26 terminal locations 15239 | -6/Factory | Hacking Suite fried by hacking feedback 15265 | -6/Factory | Entered Lower Caves 15265 | -6/Lower Caves | Accompanied by 1 ally 15372 | -6/Lower Caves | Learned Factory emergency access door positions 15384 | -6/Lower Caves | Build established: Scavenger-Sprinter 15395 | -6/Lower Caves | Encountered a Warlord checkpoint 15396 | -6/Lower Caves | Discovered new exit (range 10) 15400 | -6/Lower Caves | Entered another Lower Caves area 15410 | -6/Lower Caves | Discovered exit to Factory (range 10) 15463 | -6/Lower Caves | Learned Factory stockpile data 15470 | -6/Lower Caves | Learned 4 Factory zone layouts 15635 | -6/Lower Caves | Spotted B-75 Beast 15641 | -6/Lower Caves | Discovered new exit (range 9) 15644 | -6/Lower Caves | Entered Zion 15671 | -6/Zion | Discovered new exit (range 9) 15716 | -6/Zion | Found Unknown Piercing Weapon 15716 | -6/Zion | Identified CR-A16's Pointy Stick 15794 | -6/Zion | Learned location of 1 exit from Factory 15854 | -6/Zion | Rebuked by Imprinter 15914 | -6/Zion | Entered Proximity Caves 15937 | -5/Proximity Caves | Learned Factory stockpile data 15943 | -5/Proximity Caves | Acquired the password to a Derelict Tinkerer's latest research 15956 | -5/Proximity Caves | Attracted the attention of an 0b10 outpost 16067 | -5/Proximity Caves | Learned Factory terminal intel 16075 | -5/Proximity Caves | Discovered exit to Factory (range 7) 16077 | -5/Proximity Caves | Entered Factory 16077 | -5/Factory | Evolved 2 slots: Propulsion x1, Utility x1 16078 | -5/Factory | Identified exit to Upper Caves 16079 | -5/Factory | Identified exit to Factory 16083 | -5/Factory | Loaded intel: 26 terminal locations 16155 | -5/Factory | Fabricated Combat Drone Bay (x1) 16195 | -5/Factory | Fabricated Gravity Neutralizer (x1) 16249 | -5/Factory | Discovered exit to Factory (range 15) 16332 | -5/Factory | Discovered exit to Factory (range 12) 16373 | -5/Factory | Watched by a mysterious "MATRIX" hacker 16416 | -5/Factory | Repaired Broken Field Propulsion Array? 16422 | -5/Factory | Spotted B-75 Beast 16626 | -5/Factory | Build established: Hacker-Sprinter 16726 | -5/Factory | Learned location of 3 exits from Factory 16795 | -5/Factory | Fabricated Field Propulsion Array (x1) 16806 | -5/Factory | Learned 2 Proximity Caves zone layouts 16837 | -5/Factory | Fabricated Field Propulsion Array? 16877 | -5/Factory | Loaded intel: 4 scanalyzer locations 16925 | -5/Factory | Entered Upper Caves 16927 | -5/Upper Caves | Attracted the attention of an 0b10 checkpoint 16984 | -5/Upper Caves | Encountered a Warlord checkpoint 17015 | -5/Upper Caves | Discovered new exit (range 6) 17082 | -5/Upper Caves | Entered another Upper Caves area 17095 | -5/Upper Caves | Learned 4 Factory zone layouts 17122 | -5/Upper Caves | Entered an active Warlord outpost 17122 | -5/Upper Caves | A Commander dispatched an escort 17125 | -5/Upper Caves | Learned location of Armory (-3) 17125 | -5/Upper Caves | Learned Factory terminal intel 17125 | -5/Upper Caves | Learned Factory garrison access intel 17125 | -5/Upper Caves | Learned Armory garrison access intel 17174 | -5/Upper Caves | Discovered exit to Factory (range 8) 17202 | -5/Upper Caves | Encountered a Warlord checkpoint 17211 | -5/Upper Caves | Attracted the attention of an 0b10 checkpoint 17318 | -5/Upper Caves | Discovered new exit (range 13) 17444 | -5/Upper Caves | Attacked by a delusional Derelict stockpiling Unaware 17674 | -5/Upper Caves | Entered Warlord 17674 | -5/Warlord | Accompanied by 5 allies 17675 | -5/Warlord | Commander's escort returned to base 17675 | -5/Warlord | Commander's escort returned to base 17685 | -5/Warlord | Discovered new exit (range 15) 17789 | -5/Warlord | Opened Warlord's prototype stash 17797 | -5/Warlord | Found Prototype Reactor 17797 | -5/Warlord | Identified Vortex Chain Reactor 17802 | -5/Warlord | Found Prototype Device 17802 | -5/Warlord | Identified System Purifier 17804 | -5/Warlord | Found Prototype Processor 17804 | -5/Warlord | Identified Exp. Core Analyzer 17807 | -5/Warlord | Found Prototype Hackware 17848 | -5/Warlord | Warlord's base attacked by MAIN.C 17863 | -5/Warlord | Met Warlord 17925 | -5/Warlord | Identified Ghost Barrier 17930 | -5/Warlord | Spotted B-86 Titan 17939 | -5/Warlord | DAS Turret deployed 17941 | -5/Warlord | DAS Turret deployed 17942 | -5/Warlord | DAS Turret deployed 18148 | -5/Warlord | Found Prototype Device 18198 | -5/Warlord | Warlord forces counterattacked 18277 | -5/Warlord | Lost 3 allies 18305 | -5/Warlord | Spotted Striker 18306 | -5/Warlord | Spotted B-75 Beast 18312 | -5/Warlord | Spotted B-86 Titan 18353 | -5/Warlord | Lost 10 allies 18378 | -5/Warlord | Allies destroyed B-75 Beast 18422 | -5/Warlord | Allies destroyed B-86 Titan 18523 | -5/Warlord | Warlord base infiltrated, sounded retreat 18614 | -5/Warlord | Spotted Striker 18653 | -5/Warlord | Spotted Executioner 18663 | -5/Warlord | Destroyed Executioner 18680 | -5/Warlord | Found Exp. Core Analyzer 18711 | -5/Warlord | Spotted Striker 18761 | -5/Warlord | Spotted B-86 Titan 18761 | -5/Warlord | Spotted Executioner 18762 | -5/Warlord | Spotted Executioner 18805 | -5/Warlord | Found Prototype Processor 18805 | -5/Warlord | Identified Exp. Targeting Computer 18816 | -5/Warlord | Found Prototype Device 18816 | -5/Warlord | Identified Exp. Shock Absorption System 18823 | -5/Warlord | Lost 14 allies 18824 | -5/Warlord | Found Exp. Melee Analysis Suite 18858 | -5/Warlord | Spotted Striker 18891 | -5/Warlord | Allies destroyed Striker 18903 | -5/Warlord | Spotted Executioner 18924 | -5/Warlord | Allies destroyed Executioner 18942 | -5/Warlord | Lost 3 allies 19014 | -5/Warlord | Entered Proximity Caves 19107 | -4/Proximity Caves | Spotter reported a threat 19129 | -4/Proximity Caves | Build established: Scavenger-Gladiator 19178 | -4/Proximity Caves | Lost 3 parts (1p1n1w) 19263 | -4/Proximity Caves | Discovered exit to Factory (range 9) 19267 | -4/Proximity Caves | Entered Factory 19267 | -4/Factory | Evolved 2 slots: Propulsion x1, Utility x1 19268 | -4/Factory | Identified exit to Extension 19269 | -4/Factory | Identified exit to Upper Caves 19269 | -4/Factory | Identified exit to Research 19272 | -4/Factory | Loaded intel: 28 terminal locations 19273 | -4/Factory | Loaded intel: 4 garrison access locations 19293 | -4/Factory | Lost 3 parts (1n2u) 19723 | -4/Factory | Entered Extension 19724 | -4/Extension | Identified exit to Cetus 19758 | -4/Extension | Rescued A7 19836 | -4/Extension | Build established: Scavenger-Scout 19940 | -4/Extension | Rescued a captive Derelict 20035 | -4/Extension | Rescued a captive Derelict 20238 | -4/Extension | Build established: Commander-Scout 20293 | -4/Extension | Spotted B-86 Titan 20312 | -4/Extension | Spotted B-86 Titan 20317 | -4/Extension | Allies destroyed B-86 Titan 20340 | -4/Extension | Allies destroyed B-86 Titan 20374 | -4/Extension | Rescued a captive Derelict 20452 | -4/Extension | Rescued a captive Derelict 20714 | -4/Extension | Entered Cetus 20714 | -4/Cetus | Accompanied by 18 allies (A7) 20719 | -4/Cetus | Acquired a Cetus Manufacturing Module code from A7 20721 | -4/Cetus | Spotted Cetus Guard 20721 | -4/Cetus | Spotted Cetus Guard 20725 | -4/Cetus | Spotted Cetus Guard 20728 | -4/Cetus | Spotted Cetus Guard 20733 | -4/Cetus | Allies destroyed Cetus Guard 20749 | -4/Cetus | Allies destroyed Cetus Guard 20752 | -4/Cetus | Extracted ID and sensor layout for unrecognized location from A7's data core 20758 | -4/Cetus | Allies destroyed Cetus Guard 20761 | -4/Cetus | Allies destroyed Cetus Guard 20790 | -4/Cetus | Started Cetus Manufacturing Module 20797 | -4/Cetus | Lost 6 allies 20800 | -4/Cetus | Discovered new exit (range 21) 20815 | -4/Cetus | Manufactured an Enhanced Grunt 20840 | -4/Cetus | Manufactured an Enhanced Grunt 20865 | -4/Cetus | Manufactured an Enhanced Grunt 20881 | -4/Cetus | Spotted Cetus Guard 20881 | -4/Cetus | Spotted Cetus Guard 20890 | -4/Cetus | Manufactured an Enhanced Grunt 20895 | -4/Cetus | Spotted Cetus Guard 20895 | -4/Cetus | Spotted Cetus Guard 20896 | -4/Cetus | Allies destroyed Cetus Guard 20912 | -4/Cetus | Allies destroyed Cetus Guard 20915 | -4/Cetus | Manufactured an Enhanced Grunt 20915 | -4/Cetus | Allies destroyed Cetus Guard 20917 | -4/Cetus | Allies destroyed Cetus Guard 20934 | -4/Cetus | Discovered exit to Research (range 21) 20945 | -4/Cetus | Lost 9 allies 20952 | -4/Cetus | Met Revision 17 20995 | -4/Cetus | Entered Archives 20995 | -4/Archives | Accompanied by 8 allies 21081 | -4/Archives | Found Prototype Device 21081 | -4/Archives | Identified Exp. Thermal Shield 21087 | -4/Archives | Discovered new exit (range 22) 21089 | -4/Archives | Discovered new exit (range 22) 21093 | -4/Archives | Discovered exit to Research (range 22) 21207 | -4/Archives | Build established: Scavenger-Scout 21511 | -4/Archives | Build established: Scavenger-Assassin 23170 | -4/Archives | Entered Hub_04(d) 23170 | -4/Hub_04(d) | Accompanied by 4 allies 23202 | -4/Hub_04(d) | Discovered exit to Research (range 6) 23297 | -4/Hub_04(d) | Discovered exit to Research (range 16) 23309 | -4/Hub_04(d) | Discovered exit to Research (range 9) 23393 | -4/Hub_04(d) | Build established: Scavenger-Mutant 23469 | -4/Hub_04(d) | Spotted B-86 Titan 23562 | -4/Hub_04(d) | Network Hub disabled 23600 | -4/Hub_04(d) | Network Hub disabled 23635 | -4/Hub_04(d) | Lost 4 parts (1p2n1u) 23645 | -4/Hub_04(d) | Network Hub disabled 23645 | -4/Hub_04(d) | Network Hub disabled 23662 | -4/Hub_04(d) | Entered Research 23662 | -3/Research | Evolved 2 slots: Utility x2 23724 | -3/Research | Fabricated Cmb. Linear Gravjet? 23726 | -3/Research | Repaired Cmb. Linear Gravjet 23765 | -3/Research | Repaired Cmb. Linear Gravjet 23775 | -3/Research | Found Prototype Device 23775 | -3/Research | Identified Adv. EM Shield 23803 | -3/Research | Repaired Cmb. Linear Gravjet? 23811 | -3/Research | Targeted by mysterious "MATRIX" hacker 23845 | -3/Research | Repaired Antigrav Array 23862 | -3/Research | Revision forces began assault on 0b10 23874 | -3/Research | Central database locked down 23918 | -3/Research | Met up with Revision 17++ 23939 | -3/Research | Identified exit to Research 24115 | -3/Research | Found Unknown Device 24115 | -3/Research | Identified Launcher Loader 24362 | -3/Research | Research terminal network offline 24386 | -3/Research | Spotted B-86 Titan 24396 | -3/Research | Destroyed B-86 Titan 24487 | -3/Research | Discovered new exit (range 8) 24489 | -3/Research | Identified exit to Quarantine 24490 | -3/Research | Entered Quarantine 24491 | -3/Quarantine | Maximum security lockdown engaged 24528 | -3/Quarantine | Spotted CY-PHR 24532 | -3/Quarantine | Local machine network offline 24534 | -3/Quarantine | Discovered exit to Research (range 5) 24549 | -3/Quarantine | Entered Research 24549 | -2/Research | Warlord forces began assault on 0b10 24549 | -2/Research | Evolved 2 slots: Utility x2 24572 | -2/Research | Lost 3 parts (1p1n1u) 24657 | -2/Research | Identified exit to Testing 24659 | -2/Research | Research machine network offline 24663 | -2/Research | Met up with Warlord 24665 | -2/Research | Repaired Centrium Medium Armor Plating? 24690 | -2/Research | Fabricated Cmb. Linear Gravjet? 24933 | -2/Research | Borebot progress halted 25047 | -2/Research | Build established: Scavenger-Ninja 25161 | -2/Research | Borebot progress halted 25182 | -2/Research | Spotted Striker 25183 | -2/Research | Spotted Striker 25186 | -2/Research | Spotted Executioner 25212 | -2/Research | Lost 3 allies 25214 | -2/Research | Spotted Striker 25311 | -2/Research | Met DD-05H 25427 | -2/Research | Discovered new exit (range 15) 25427 | -2/Research | Spotted Striker 25549 | -2/Research | Warlord invited to help at Command 25549 | -2/Research | Given Cave Seal Controls access code 25567 | -2/Research | Entered Access 25567 | -1/Access | Evolved 2 slots: Utility x2 25598 | -1/Access | Identified exit to Surface 25605 | -1/Access | Identified exit to Command 25658 | -1/Access | Lost 3 allies 25703 | -1/Access | Build established: Scavenger-Mutant 25817 | -1/Access | Search patrols dispatched 26087 | -1/Access | Spotted B-99 Colossus 26090 | -1/Access | Revealed the true nature of CR-A16's Pointy Stick 26092 | -1/Access | Destroyed B-99 Colossus 26181 | -1/Access | Fabricated Femtoactuators? 26189 | -1/Access | Fabricated Exp. Utility Shielding (x1) 26323 | -1/Access | Entered Command 26362 | -1/Command | Spotted B-99 Colossus 26372 | -1/Command | Destroyed B-99 Colossus 26666 | -1/Command | Repaired Broken Phasing Sabre 26792 | -1/Command | Spotted M Guard 26794 | -1/Command | Spotted Combat Programmer 26812 | -1/Command | Spotted Combat Programmer 26821 | -1/Command | Destroyed Combat Programmer 26839 | -1/Command | Destroyed Combat Programmer 26913 | -1/Command | Build established: Scavenger-Gladiator 26986 | -1/Command | Lost 3 parts (1p2u) 27085 | -1/Command | Disengaged cave seal 27091 | -1/Command | Welcomed Warlord to Command 27188 | -1/Command | Lost 3 allies 27210 | -1/Command | Warlord commented on Warlord statues 27266 | -1/Command | Warlord destroyed during the assault 27297 | -1/Command | Lost 7 allies 27323 | -1/Command | First assault squad dispatched 27348 | -1/Command | Spotted M Guard 27414 | -1/Command | Incoming assault squad redirected 27433 | -1/Command | Lost 5 allies 27442 | -1/Command | Found Prototype Device 27468 | -1/Command | Met MAIN.C 27470 | -1/Command | 0b10 Conduit disabled 27471 | -1/Command | System corruption reached 10% 27503 | -1/Command | Identified AEGIS Remote Shield 27522 | -1/Command | Identified Wardrone Bay 27537 | -1/Command | Core integrity fell below 50% 27549 | -1/Command | Found Prototype Reactor 27549 | -1/Command | Identified Zero-point Reactor 27563 | -1/Command | Allies destroyed M Guard 27577 | -1/Command | Allies destroyed M Guard 27577 | -1/Command | All MAIN.C guards destroyed 27583 | -1/Command | Allies destroyed MAIN.C Shell 27583 | -1/Command | MAIN.C activated Command garrisons 27599 | -1/Command | Lost 11 parts (3p2n6u) 27633 | -1/Command | Allies destroyed MAIN.C 27638 | -1/Command | Discovered exit to Surface (range 51) 27638 | -1/Command | Discovered exit to Surface (range 90) 27638 | -1/Command | Extracted map data and part IDs from MAIN.C's data core 27656 | -1/Command | Spotted B-99 Colossus 27671 | -1/Command | Destroyed B-99 Colossus 27705 | -1/Command | Lost 4 parts (1n3u) 27707 | *** | Establishing 0b11! Last Messages --------------- 27682_ Acquired 10 matter. 27687_ Destroyed Gamma Rifle. 27687_ Destroyed Imp. Antigrav System. 27687_ P-80 Master fails to hack Y-72 Warden. 27688_ Slug penetrates Y-72 Warden. 27689_ Slug penetrates Recycling Unit. 27690_ P-80 Master suffers critical hit (Blast). 27690_ P-80 Master destroyed. 27691_ Slug penetrates Y-72 Warden. 27692_ Slug penetrates Recycling Unit. 27692_ Y-72 Warden suffers critical hit (Destroy). 27695_ Slug penetrates Recycling Unit. 27695_ Y-72 Warden destroyed. 27697_ Penetrated by Slug. 27698_ BACPFOEJZUE|AXT |9E6=H6BAKC 27698_ P-80 Master destroyed. 27705_ Slug penetrates Recycling Unit. 27705_ Penetrated by Slug. 27705_ W-44 Eye destroyed. [Achievement: CQB] Map ----- +----------------------------------------------------+ | ######+#########" #== ## #????#? | | #!!= " # # #????#? | | #!== ! ! " # ## #????#? | | #!== / #######+######### #????#? | | # # #????#? | | =# # ##????#? | | + """"T"""" # #?????#? | | # """"""""""" #! """" ######## | | #################=!%" "" | | #####+#########?????###[=% | | ?# #?????#[%!%!! | | ?# #????##]!!/%[ ######## | | ?# ######[!#!!%! ####?????#? | | ?# [ # %##==%=*% "#######?#? | | ?# ] # % ##[! !%! " #?#? | | ?# "" + % %!% # #?#? | | ?#"""" # %**%* # #?## | | ?#"""" # ! =########## # = = #??? | | ?# "" #[ * =[#????????# # #??? | | ?# ## = ##????????# +^ =#??? | | ?# ## #?????????# # #??? | | ?# ## #?????????# # * #??? | | ?######+#######" % #??######## # #??? | | ??????# ##"""##" #??# # #??? | | ??????# ##"T"### #??# %! + #??? | | ?????##+##" "##" #??# @ ########## # #??? | | ?????# # #??# ## ## # #??? | | ?????# # #??###### ## ########### | | ?????# #???????# + | | ?????# + #???????# # | | ?????# ""T"" # ######### # ####### | | ?????# """"" # # = # # #??#### | | ?????# # # # != # #??#[]] | | ?????# # # + != #######+####][] | | ?????######## ## # Y Y # ! #???# #!!! | | ################ # "" # #???# #!!! | | + """ + #???# #### | | # R" # #???# #??? | | # """ # #???# #??? | | #! "" # #???# #??? | | ################ # ####+###???########??? | | # # # / #??# #???????????????? | | +! ! ] # ############ ##??????????????? | | # ! + #??????????????? | | # = # #??????????????? | | # # #??????????????? | | ##""" """##### #??????????????? | | = ##"""T"""#?####+#+####+##########??????????????? | | ############ #????????????????? | | ###?????????# #????????????????? | +----------------------------------------------------+ Best States ------------- Heat Dissipation 130 Energy Generation 55 Energy Capacity 780 Matter Stores 300 Matter Capacity 300 Sight Range 22 Robot Scan Range 20 Terrain Scan Range 16 Terrain Scan Density 10 Jamming Range 14 Power Amplification 30 Additional Mass Support 25 Armor Coverage 600 Resistance: KI 25 Resistance: EM 50 Core Shielding 20 Propulsion Shielding 66 Utility Shielding 90 Weapon Shielding 66 Point Defense Rating 160 Melee Speed Boost 50 Phase Shifting 15 Evasion (%) 71 Melee Accuracy 12 Target Analysis 8 Core Analysis 9 Armor Integrity Analysis 30 Recoil Reduction 4 Force Boost 20 Offensive Hacking 36 Defensive Hacking 20 Authchip Count 3 Item Schematics ----------------- Imp. VTOL Module | -8/Materials | Scanalyzed Combat Drone Bay | -7/Data Miner | Free Lgt. Regenerative Plating | -7/Data Miner | Free Cld. Aerolev Unit | -7/Data Miner | Free Gravity Neutralizer | -7/Data Miner | Free Thunder Leg | -7/Data Miner | Free Imp. Heavy Laser | -7/Data Miner | Free Imp. Remote Datajack | -7/Data Miner | Free Arm. Leg | -7/Data Miner | Free Hvy. Gauss Cannon | -7/Data Miner | Free Imp. Component Analysis Suite | -7/Data Miner | Free Imp. System Shield | -6/Zion | Archive Adv. Plasma Cannon | -6/Zion | Archive Focal Shield | -6/Zion | Archive Imp. Thermal Generator | -6/Zion | Archive Antimatter Reactor | -6/Zion | Archive HERF Cannon | -6/Zion | Archive Hvy. Flak Cannon | -6/Zion | Archive KE Penetrator | -6/Zion | Archive Plasma Rifle | -6/Zion | Archive Imp. Corruption Screen | -6/Zion | Archive Angular Momentum Engine | -6/Zion | Archive Lrn. Proton Cannon | -6/Zion | Archive Neutrino Core | -6/Zion | Archive Lgt. Angular Momentum Engine | -6/Zion | Archive Riot Gun | -6/Zion | Free Battle Cannon | -6/Zion | Free Flamer | -6/Zion | Free Ripper | -6/Zion | Free Antigrav Array | -5/Factory | Hacked Field Propulsion Array | -5/Factory | Scanalyzed Adv. Shield Generator | -5/Factory | Hacked Adv. Hacking Suite | -5/Factory | Hacked Cmb. Linear Gravjet | -4/Hub_04(d) | Hacked Adv. Powered Armor | -4/Hub_04(d) | Hacked Centrium Medium Armor Plating | -3/Research | Scanalyzed Femtoactuators | -1/Access | Hacked Exp. Utility Shielding | -1/Access | Hacked Robot Schematics ------------------ M-22 Extractor | -7/Data Miner | Free E-15 Imp | -7/Data Miner | Free W-25 Informer | -7/Data Miner | Free X-67 Chaingunner | -7/Data Miner | Free R-10 Processor | -6/Zion | Archive G-50 Soldier | -6/Zion | Archive K-01 Serf | -6/Zion | Archive X-77 Beamer | -6/Zion | Archive Fabricated ------------ Field Propulsion Array | x1 | -7/Factory | Preloaded Combat Drone Bay | x1 | -5/Factory | Authchip Gravity Neutralizer | x1 | -5/Factory | Authchip Field Propulsion Array | x1 | -5/Factory | Authchip Field Propulsion Array | x1 | -5/Factory | Authchip Cmb. Linear Gravjet | x2 | -3/Research Cmb. Linear Gravjet | x2 | -2/Research Femtoactuators | x1 | -1/Access Exp. Utility Shielding | x1 | -1/Access Repaired ---------- Katana | 12% | -8/Materials Field Propulsion Array | 99% | -5/Factory | Broken Cmb. Linear Gravjet | 11% | -3/Research Cmb. Linear Gravjet | 11% | -3/Research Cmb. Linear Gravjet | 26% | -3/Research Antigrav Array | 12% | -3/Research Centrium Medium Armor Plating | 21% | -2/Research Phasing Sabre | 21% | -1/Command | Broken Studied --------- Flight Unit | -9/Materials | Hacked Great Maul | -8/Materials | Hacked Katana | -8/Materials | Hacked Scythe | -8/Materials | Hacked Lgt. Ion Engine | -4/Factory | Hacked Linear Gravjet | -4/Factory | Hacked Cmb. Linear Gravjet | -3/Research | Hacked Alien Tech Used ----------------- None Achievements -------------- CQB Challenges ------------ None Game ------ Seed SuperquantumFluxLance Manual? 0 Play Time 05:46:57 Cumulative 1803.5 hours Start 2026.09.10 @ 17:56:32 End 2026.09.11 @ 20:09:41 Sessions 10 Manual Loads 0 Difficulty Rogue Special Mode None Game No. 546 Rogue 538 Adventurer 4 Explorer 4 Win Type 1 Total 76 Types 31/12/6/4/2/5/9/2/3/2 Lore% 98 Gallery% 96 Achievement% 93 Wizard Run 0 Options --------- Layout 0 ASCII 0 Keyboard 0 Movement Numpad Keybinds 0 Fullscreen 2 Font 18/SmallcapsGlow Map View 76x50 Zoom Use 1% Tactical HUD 1 Map Filters NONE Filters NONE Steam 1 RUN: ad777aae-881a-4c5e-aba2-bee413e77988